Workbook

Sheet Rendimientos & Supuestos
B3: Supuestos Técnicos Campo | N3: Supuestos Técnicos Planta | W3: Demanda de Semillas
C6: Cultivo | D6: Siembra | E6: Costo Semilla | G6: Rendimiento | J6: Precio de Venta | O6: Humedad a cosecha: | R6: 0.25
D7: (QQ/Ha) | E7: ($/QQ) | G7: Campo (QQ/Ha) | H7: Oro (QQ/Ha) | J7: ($/QQ Oro) | K7: ($/Bolsa) | O7: Maíz | P7: Llega | Q7: Selección | R7: Secado | S7: Desgrane | T7: Acondicionamiento | X7: Cultivo | Y7: (QQ oro) | Z7: (Bolsas) | AA7: (Ha)
C8: Maíz | D8: 0.6 | E8: =3750/24.4527 -> 153.357298 | G8: 100 | H8: =T11 -> 48.45 | J8: =K8*100/44 -> 75.12 | K8: 33.0528 | P8: Pérdida (%) | Q8: 0.05 | R8: 0.15 | S8: 0.2 | T8: 0.25 | X8: Maíz | Y8: 5000 | Z8: =Y8/0.44 -> 11363.63636 | AA8: =X19 -> 103.1991744 | AC8: =_xlfn.FORMULATEXT(AA8) -> =X19
C9: Soya | D9: 1 | E9: =3750/24.4527 -> 153.357298 | G9: 35 | H9: =T18 -> 21.64575 | J9: =K9*100/44 -> 143.1334 | K9: 62.978696 | P9: Semilla | Q9: =100%-Q8 -> 0.95 | R9: =100%-R8 -> 0.85 | S9: =100%-S8 -> 0.8 | T9: =100%-T8 -> 0.75 | X9: Soya | Y9: 5000 | Z9: =Y9/0.44 -> 11363.63636 | AA9: =X26 -> 230.9922271 | AC9: =_xlfn.FORMULATEXT(AA9) -> =X26
P10: Pérdida (QQ) | Q10: =P11*Q8 -> 5 | R10: =Q11*R8 -> 14.25 | S10: =R11*S8 -> 16.15 | T10: =S11*T8 -> 16.15
P11: =G8 -> 100 | Q11: =P11*Q9 -> 95 | R11: =Q11*R9 -> 80.75 | S11: =R11-S10 -> 64.6 | T11: =S11-T10 -> 48.45 | X11: Total | Y11: =SUM(Y8:Y10) -> 10000 | Z11: =SUM(Z8:Z10) -> 22727.27273 | AA11: =SUM(AA8:AA10) -> 334.1914015
R12: 1 | S12: 1
O13: Humedad a cosecha: | R13: 0.18
O14: Soya | P14: Llega | Q14: Selección | R14: Secado | S14: Desgrane | T14: Acondicionamiento
B15: Supuestos Financieros Producción Maíz | P15: Pérdida (%) | Q15: 0.05 | R15: 0.07 | S15: 0 | T15: 0.3 | X15: Maíz
P16: Semilla | Q16: =100%-Q15 -> 0.95 | R16: =100%-R15 -> 0.93 | S16: =100%-S15 -> 1 | T16: =100%-T15 -> 0.7 | X16: Ha | Y16: QQ Oro
P17: Pérdida (QQ) | Q17: =P18*Q15 -> 1.75 | R17: =Q18*R15 -> 2.3275 | S17: =R18*S15 -> 0 | T17: =S18*T15 -> 9.27675 | X17: 1 | Y17: =H8 -> 48.45
C18: Horizonte de evaluación (años) | E18: 5 | P18: =G9 -> 35 | Q18: =P18*Q16 -> 33.25 | R18: =Q18*R16 -> 30.9225 | S18: =R18*S16 -> 30.9225 | T18: =S18-T17 -> 21.64575 | X18: X | Y18: =Y8 -> 5000
C19: Capital de trabajo (meses) | E19: 4 | X19: =(X17*Y18)/Y17 -> 103.1991744
C20: Financiamiento bancario (tasa en US$) | E20: 0 | X20: =_xlfn.FORMULATEXT(X19) -> =(X17*Y18)/Y17
C21: Financiamiento bancario (plazo en años) | E21: 0
C22: Financiamiento bancario (monto) | E22: 0 | X22: Soya
C23: Tasa de corte | E23: 0.15 | X23: Ha | Y23: QQ Oro
C24: Tasa ISR | E24: 0.25 | X24: 1 | Y24: =H9 -> 21.64575
C25: Inflación en dólares | E25: 0.01 | X25: X | Y25: =Y9 -> 5000
C26: Capital de deuda | E26: =E22/'Presupuesto de Capital Maíz'!B68 -> 0 | X26: =(X24*Y25)/Y24 -> 230.9922271
C27: Capital propio | E27: =1-E26 -> 1 | X27: =_xlfn.FORMULATEXT(X26) -> =(X24*Y25)/Y24
B30: Supuestos Financieros Producción Soya
C33: Horizonte de evaluación (años) | E33: 5
C34: Capital de trabajo (meses) | E34: 3
C35: Financiamiento bancario (tasa en US$) | E35: 0
C36: Financiamiento bancario (plazo en años) | E36: 0
C37: Financiamiento bancario (monto) | E37: 0
C38: Tasa de corte | E38: 0.15
C39: Tasa ISR | E39: 0.25
C40: Inflación en dólares | E40: 0.01
C41: Capital de deuda | E41: =E37/'Presupuesto de Capital Soya'!B68 -> 0
C42: Capital propio | E42: =1-E41 -> 1

Sheet Distribución Cultivos en Lotes (hidden)
B2: Distribución de Cultivos por Lotes
B4: Cultivo | C4: Lote | D4: Area (Ha) | E4: Ventana de Mercado | F4: Fecha Siembra | G4: Fecha Cosecha | H4: Fecha Inicio Planta | I4: Fecha Final Planta
B5: Maíz | C5: Guinope | D5: =G16 -> 61.91950464 | E5: Primera
B6: Soya | C6: Zona 2 | D6: =C18 -> 40 | E6: Primera
B7: Soya | C7: Campus Altos | D7: =G17-D6 -> 98.59533627 | E7: Primera
B8: Maíz | C8: San Nicolas | D8: =C21 -> 25 | E8: Postrera
B9: Maíz | C9: Zona 1 | D9: =H16-D8 -> 16.27966976 | E9: Postrera
B10: Soya | C10: Zona 4 | D10: =C20 -> 20 | E10: Postrera
B11: Soya | C11: Zona 3 | D11: =H17-D10 -> 72.39689084 | E11: Postrera
B12: Total | D12: =SUM(D5:D11) -> 334.1914015
G13: Demanda en Ventanas de Mercado
G14: 0.6 | H14: =1-G14 -> 0.4
B15: Lote | C15: Area del lote (ha) | D15: Area a sembrar del lote (ha) | E15: Cultivo | F15: Área (Ha) | G15: Primera | H15: Postrera
B16: Guinope | C16: 50 | D16: =D5 -> 61.91950464 | E16: Maíz | F16: ='Rendimientos & Supuestos '!AA8 -> 103.1991744 | G16: =F16*$G$14 -> 61.91950464 | H16: =F16*$H$14 -> 41.27966976
B17: Campus Altos | C17: 20 | D17: =D7 -> 98.59533627 | E17: Soya | F17: ='Rendimientos & Supuestos '!AA9 -> 230.9922271 | G17: =F17*$G$14 -> 138.5953363 | H17: =F17*$H$14 -> 92.39689084
B18: Zona 2 | C18: 40 | D18: =D6 -> 40 | E18: Total | F18: =SUM(F16:F17) -> 334.1914015
B19: Zona 1 | C19: 10 | D19: =D9 -> 16.27966976
B20: Zona 4 | C20: 20 | D20: =D10 -> 20
B21: San Nicolas | C21: 25 | D21: =D8 -> 25
B22: Zona 3 | C22: 18 | D22: =D11 -> 72.39689084

Sheet Actividades (hidden)
C5: Actividades Cultivo de Maíz | L5: Actividades Cultivo de Soya
C7: Actividad | D7: Semana | L7: Actividad | M7: Semana
C9: Preparación de Suelo | L9: Preparación de Suelo
C10: Chapeo | D10: -4 | L10: Chapeo | M10: -4
C11: Arado | D11: -3 | L11: Arado | M11: -3
C12: Rastra pesada | D12: -3 | L12: Rastra pesada | M12: -3
C13: Rastra liviana (2) | D13: 0 | L13: Rastra liviana (2) | M13: 0
C14: Siembra | D14: 0 | L14: Siembra | M14: 0
C15: Aplicación Herbicida | D15: 1 | L15: Aplicación Herbicida | M15: 1
C16: Aplicación Insecticida/fungicida (2 + 2) | D16: 3 | E16: 5 | F16: 7 | G16: 9 | L16: Aplicación Insecticida/fungicida (5) | M16: 3 | N16: 5 | O16: 7 | P16: 9 | Q16: 10
C17: Aplicación foliar | D17: 4 | L17: Aplicación foliar | M17: 4
C18: Cultivada | D18: 3 | L18: Cultivada | M18: 3
C19: Acarreo de Cosecha | D19: 17 | L19: Acarreo de Cosecha | M19: 17
C20: Acarreo de Agua (5) | D20: 1 | E20: 3 | F20: 5 | G20: 7 | H20: 9 | L20: Acarreo de Agua (6) | M20: 1 | N20: 3 | O20: 5 | P20: 7 | Q20: 9
L21: Trilladora mecánica | M21: 10
C22: Siembra | L22: Siembra
C23: Semilla | D23: 0 | L23: Semilla | M23: 0
C24: Tratador Gaucho | D24: 0 | L24: Tratador Crusier | M24: 0
C25: Protector Scort | D25: 0 | L25: Protector Scort | M25: 0
C26: 12-24-12 | D26: 0 | L26: 12-24-12 | M26: 0
C27: MO Siembra | D27: 0 | L27: MO Siembra | M27: 0
C28: MO Fertilización | D28: 0 | L28: MO Fertilización | M28: 0
C30: Control de Malezas | L30: Control de Malezas
C31: Prowl | D31: 1 | L31: Flex | M31: 1
C32: Gesaprim 90 | D32: 1 | L32: Fusilade | M32: 1
C33: Convey | D33: 5 | L33: Prowl | M33: 5
C34: MO Herbicida mecanizada | D34: 1 | L34: MO Herbicida | M34: 1
C35: MO Convey | D35: 5 | L35: MO Flex con Fusilade | M35: 5
C37: Control de Plagas | L37: Control de Plagas
C38: Curyom 55EC | D38: 3 | L38: Connet | M38: 3
C39: Mancozeb 80WP | D39: 5 | L39: Nativo | M39: 5
C40: Nativo | D40: 9 | L40: Amistar (2) | M40: 7 | N40: 10
C41: Proclaim 5SG | D41: 7 | L41: Engeo | M41: 9
C42: MO Aplicaciones | D42: 3 | E42: 5 | F42: 7 | G42: 9 | L42: MO Aplicaciones | M42: 3 | N42: 5 | O42: 7 | P42: 9 | Q42: 10
C44: Fertilización | L44: Fertilización
C45: Urea | D45: 4 | L45: Urea | M45: 4
C46: Kelpak | D46: 4 | L46: KCL | M46: 4
C47: Bayfolan | D47: 1 | L47: Bayfolan | M47: 1
C48: MO Urea | D48: 1 | L48: MO Urea | M48: 1
C49: MO foliar | D49: 1 | L49: MO foliar | M49: 1
C51: Riego | L51: Riego
C52: MO Instalar Sistema Riego | D52: -1 | L52: MO Instalar Sistema Riego | M52: -1
C53: MO Recoger Cinta | D53: 17 | L53: MO Recoger Cinta | M53: 13
C54: Cinta | D54: -3 | L54: Cinta | M54: -3
C55: MO Regador | D55: 1 | L55: MO Regador | M55: 1 | Q55: 10
C56: Bomba de riego | D56: 1 | L56: Bomba de riego | M56: 1 | Q56: 10
C58: Cosecha | L58: Cosecha
C59: MO Supervisor de Cosecha | D59: 17 | L59: MO Supervisor de Cosecha | M59: 13
C60: MO Corteros | D60: 17 | L60: MO Corteros | M60: 13
C61: Sacos | D61: 17 | L61: Sacos | M61: 13
C62: Transporte | D62: 17 | L62: Transporte | M62: 13
C64: Mantenimiento | L64: Mantenimiento
C65: Raleo | D65: 2 | L65: Raleo | M65: 2
C66: Limpieza manual de malezas nocivas | D66: 4 | L66: Limpieza manual de malezas nocivas | M66: 4
C67: Descañuele | D67: 6 | E67: 10 | L67: Descañuele | M67: 6 | N67: 10
C68: Despanojado | D68: 8 | L68: Despanojado | M68: 8
C69: Eliminación de machos | D69: 17 | L69: Eliminación de machos | M69: 13
C70: Eliminación de plantas enfermas | D70: 1 | L70: Eliminación de plantas enfermas | M70: 1
C71: Carga y descarga de cosecha | D71: 17 | L71: Carga y descarga de cosecha | M71: 13
C73: Destrucción | L73: Destrucción
C74: Rastra pesada | D74: 17 | L74: Rastra pesada | M74: 13

Sheet Diagrama de Gantt (hidden)
B2: PLANEACIÓN DE ACTIVIDADES - FINCA EL YEGUARE
B5: Cultivo | C5: Lote | D5: Area (Ha) | E5: Ventana de Mercado | F5: NOVIEMBRE/ 22 | J5: DICIEMBRE/ 22 | N5: ENERO/ 23 | R5: FEBRERO/ 23 | V5: MARZO/ 23 | Z5: ABRIL/ 23 | AD5: MAYO/ 23 | AH5: JUNIO/ 23 | AL5: JULIO/ 23 | AP5: AGOSTO/ 23 | AT5: SEPTIEMBRE/ 23 | AX5: OCTUBRE/ 23 | BB5: NOVIEMBRE/ 23 | BF5: DICIEMBRE/ 23
F6: Semana 1 | G6: Semana 2 | H6: Semana 3 | I6: Semana 4 | J6: Semana 1 | K6: Semana 2 | L6: Semana 3 | M6: Semana 4 | N6: Semana 1 | O6: Semana 2 | P6: Semana 3 | Q6: Semana 4 | R6: Semana 1 | S6: Semana 2 | T6: Semana 3 | U6: Semana 4 | V6: Semana 1 | W6: Semana 2 | X6: Semana 3 | Y6: Semana 4 | Z6: Semana 1 | AA6: Semana 2 | AB6: Semana 3 | AC6: Semana 4 | AD6: Semana 1 | AE6: Semana 2 | AF6: Semana 3 | AG6: Semana 4 | AH6: Semana 1 | AI6: Semana 2 | AJ6: Semana 3 | AK6: Semana 4 | AL6: Semana 1 | AM6: Semana 2 | AN6: Semana 3 | AO6: Semana 4 | AP6: Semana 1 | AQ6: Semana 2 | AR6: Semana 3 | AS6: Semana 4 | AT6: Semana 1 | AU6: Semana 2 | AV6: Semana 3 | AW6: Semana 4 | AX6: Semana 1 | AY6: Semana 2 | AZ6: Semana 3 | BA6: Semana 4 | BB6: Semana 1 | BC6: Semana 2 | BD6: Semana 3 | BE6: Semana 4 | BF6: Semana 1 | BG6: Semana 2 | BH6: Semana 3 | BI6: Semana 4
B7: ='Distribución Cultivos en Lotes'!B5 -> Maíz | C7: ='Distribución Cultivos en Lotes'!C5 -> Guinope | D7: ='Distribución Cultivos en Lotes'!D5 -> 61.91950464 | E7: ='Distribución Cultivos en Lotes'!E5 -> Primera | H7: Chapeo | I7: Arado | L7: Ciclo del cultivo de maíz | AB7: Proceso
B8: ='Distribución Cultivos en Lotes'!B6 -> Soya | C8: ='Distribución Cultivos en Lotes'!C6 -> Zona 2 | D8: ='Distribución Cultivos en Lotes'!D6 -> 40 | E8: ='Distribución Cultivos en Lotes'!E6 -> Primera | L8: Preparación de suelos | P8: Ciclo del cultivo de Soya | AB8: Proceso
B9: ='Distribución Cultivos en Lotes'!B7 -> Soya | C9: ='Distribución Cultivos en Lotes'!C7 -> Campus Altos | D9: ='Distribución Cultivos en Lotes'!D7 -> 98.59533627 | E9: ='Distribución Cultivos en Lotes'!E7 -> Primera | M9: Preparación de suelos | Q9: Ciclo del cultivo de Soya | AC9: Proceso
B10: ='Distribución Cultivos en Lotes'!B8 -> Maíz | C10: ='Distribución Cultivos en Lotes'!C8 -> San Nicolas | D10: ='Distribución Cultivos en Lotes'!D8 -> 25 | E10: ='Distribución Cultivos en Lotes'!E8 -> Postrera | W10: Preparación de suelos | AA10: Ciclo del cultivo de maíz | AQ10: Proceso
B11: ='Distribución Cultivos en Lotes'!B9 -> Maíz | C11: ='Distribución Cultivos en Lotes'!C9 -> Zona 1 | D11: ='Distribución Cultivos en Lotes'!D9 -> 16.27966976 | E11: ='Distribución Cultivos en Lotes'!E9 -> Postrera | W11: Preparación de suelos | AA11: Ciclo del cultivo de maíz | AQ11: Proceso
B12: ='Distribución Cultivos en Lotes'!B10 -> Soya | C12: ='Distribución Cultivos en Lotes'!C10 -> Zona 4 | D12: ='Distribución Cultivos en Lotes'!D10 -> 20 | E12: ='Distribución Cultivos en Lotes'!E10 -> Postrera | Z12: Preparación de suelos | AD12: Ciclo del cultivo de Soya | AP12: Proceso
B13: ='Distribución Cultivos en Lotes'!B11 -> Soya | C13: ='Distribución Cultivos en Lotes'!C11 -> Zona 3 | D13: ='Distribución Cultivos en Lotes'!D11 -> 72.39689084 | E13: ='Distribución Cultivos en Lotes'!E11 -> Postrera | AA13: Preparación de suelos | AE13: Ciclo del cultivo de Soya | AQ13: Proceso
B16: Total | D16: =SUM(D7:D15) -> 334.1914015

Sheet Px Insumos
E3: Precio de Insumos
E7: FERTILIZANTES | F7: UNIDAD | G7: DOSIS | H7: PRECIO/UNIDAD | L7: HERBICIDAS | M7: UNIDAD | N7: DOSIS | O7: PRECIO/UNIDAD | S7: INSECTICIDAS | T7: UNIDAD | U7: DOSIS | V7: PRECIO/UNIDAD
E8: 18-46-0 | F8: QQ | H8: 23.39209985 | L8: Roundup Max | M8: Kg | O8: 11.85963104 | S8: Gaucho | T8: Gr | U8: 0.1 | V8: 0.2302404233
E9: 12-24-12 | F9: QQ | G9: 2 | H9: 18.97540967 | O9: 0 | S9: Furadán TS | T9: Gal | V9: 66.25035272
E10: 0-0-60 | F10: QQ | H10: 17.87123712 | L10: Gesaprim | M10: kg | O10: 8.588008686 | S10: Engeo | T10: Lt | U10: 0.3 | V10: 82.36309283
E11: 46-0-0 | F11: QQ | H11: 17.29870321 | L11: Flex | M11: Lt | N11: 0.6 | O11: 28.42221922 | S11: Lorsban 48 EC | T11: Lt | V11: 14.64051005
E12: MAP | F12: QQ | H12: 107.6363755 | L12: Fusilade | M12: Lt | N12: 1 | O12: 27.35894196 | S12: Match | T12: Lt | V12: 59.70710801
E13: KCl | F13: QQ | G13: 1 | H13: 17.58497017 | L13: Basagrán | M13: Lt | O13: 27.39983724 | S13: Proclaim | T13: Gr | V13: 0.222879273
E14: Nitrato de amonio | F14: QQ | G14: 1 | H14: 19.62973414 | L14: Select | M14: Lt | O14: 24.291796 | S14: Volaton 5 G | T14: Kg | V14: 0.4907433535
E15: Sulf Mg | F15: QQ | H15: 10.91903962 | L15: 2-4D | M15: Lt | N15: 1 | O15: 3.537441673 | S15: Connet | T15: Lt | U15: 0.45 | V15: 29.15833425
E16: Bayfolan (T20+micronutrientes) | F16: Lt | H16: 6.134291919 | L16: Ronstar | M16: Lt | N16: 1 | O16: 40.07737387 | S16: Lorsban 48 EC | T16: Lt | V16: 14.64051005
E17: FERTILIZANTE TERRABLEND | F17: QQ | G17: 6 | H17: 27.56341835 | L17: Arromax | M17: Lt | N17: 0.6 | O17: 28.42221922 | S17: Adherente | T17: Lt | V17: 35.57889313
E18: Urea | F18: QQ | G18: 3 | H18: 17.29870321 | L18: Prowl 45.5 CS | M18: Lt | N18: 3 | O18: 14.31334781 | S18: Scort | T18: Gr | U18: 1 | V18: 0.5320890215
E19: Kelpak | F19: Lt | G19: 2 | H19: 12.67753663 | L19: Gesaprim 90 G | M19: Kg | N19: 2 | O19: 8.588008686 | V19: 0
E20: Bayfolan | F20: Lt | G20: 2 | H20: 6.134291919 | L20: Roundup Max | M20: kg | N20: 1.5 | O20: 11.85963104 | S20: Nomolt 15SC | T20: Lt | U20: 0.25 | V20: 69.93092787
E21: Biozyme | F21: Lt | G21: 0.099 | H21: 26.58193165 | L21: Convey | M21: Lt | N21: 0.1 | O21: 536.9550193 | S21: Curyom 55EC | T21: Lt | U21: 0.25 | V21: 36.39679872
L22: Basta 15SL | M22: Lt | N22: 2 | O22: 15.1312534 | S22: Sunfire 24SC | T22: Lt | U22: 0.2 | V22: 136.1812806
S23: Proclaim 5SG | T23: Kg | U23: 0.1 | V23: 222.879273
S24: Karate Zeon 2.5CS | T24: Lt | U24: 0.25 | V24: 30.2625068
E25: FUNGICIDAS | F25: UNIDAD | H25: PRECIO/UNIDAD | S25: BreakThru | T25: Lt | U25: 1.2 | V25: 35.57889313
E26: Mancozeb | F26: Kg | H26: 4.089527946
E27: Acrobat | F27: Gr | H27: 0.029853554 | L27: MANO DE OBRA | M27: UNIDAD | O27: PRECIO/UNIDAD
E28: Kocide | F28: Gr | H28: 0.1460545695 | L28: Mano de obra temporal | M28: Jornal/día | O28: 16.24762092 | S28: VARIOS | T28: UNIDAD | V28: PRECIO/UNIDAD
E29: Mancozeb 80WP | F29: Kg | G29: 0.7 | H29: 4.089527946 | L29: Mano de obra permanente | M29: Jornal/día | O29: 17.49743791 | S29: Sacos | T29: Unidad | V29: 0.2862669562
E30: Antracol 70WP | F30: Kg | G30: 0.7 | H30: 17.58497017 | L30: Mano de obra especializada | M30: Jornal/día | O30: 19.4971451 | S30: Transporte de cosecha | T30: Viaje | V30: 73.61150302
E31: Nativo | F31: KG | G31: 0.15 | H31: 148.4498644 | L31: Vigilante | M31: Jornal/día | O31: 0 | S31: Sacos cosechados por viaje | T31: sacos | V31: 320
E32: Opera | F32: L | G32: 0.4 | H32: 51.11909932 | L32: Vha por vigilante | M32: Ha | O32: 0.4907433535 | S32: Análisis de suelos | T32: Análisis | V32: 17.26516908
E33: Agrimicin 16.4WP | F33: Kg | G33: 0.5 | H33: 36.80575151 | L33: Vigilante | M33: Jornal/día | O33: 0 | S33: Cinta riego | T33: Rollo | V33: 143.1334781
E34: Amistar | F34: Kg | G34: =120/1000 -> 0.12 | H34: 205.2943029 | L34: Vigilante | M34: L/Ha | O34: 0 | S34: Gastos administrativos | T34: % | V34: 0

Sheet Px Maquinaria
E2: Maquinaria y Riego
F6: Rendimiento (Ha/hora) | K6: Costo (L./Hora)
E7: ENSILAJE / CULTIVOS / HENO | J7: ENSILAJE / CULTIVOS / HENO
E8: Prep. / Siem. Cult./Ens/Heno | J8: Prep. / Siem. Cult./Ens/Heno
E9: Subsolado Primer Pase | F9: 0.3 | J9: Subsolado Primer Pase | K9: 29.40370593
E10: Subsolado Segundo Pase | F10: 0.5 | J10: Subsolado Segundo Pase | K10: 31.29413112
E11: Subsolado Tercer Pase | F11: 0.6 | J11: Subsolado Tercer Pase | K11: 31.29413112
E12: Picado de Rastrojo | F12: 0.6 | J12: Picado de Rastrojo | K12: 38.18130513
E13: Chapeo de Preparación | F13: 0.7 | J13: Chapia de Preparación | K13: 27.71432194
E14: Rastra Incorporación Primer Pase (Rastra pesada) | F14: 0.7 | J14: Rastra Incorporación Primer Pase (Rastra pesada) | K14: 29.99832329
E15: Rastra Incorporación Segundo Pase | F15: 0.75 | J15: Rastra Incorporación Segundo Pase | K15: 33.13850822
E16: Arado | F16: 0.45 | J16: Arado | K16: 28.9023298
E17: Rastra Primer Pase (Rastra liviana) | F17: 0.75 | J17: Rastra Primer Pase (Rastra liviana) | K17: 30.02735894
E18: Rastra Segundo Pase | F18: 0.8 | J18: Rastra Segundo Pase | K18: 32.95317082
E19: Rastra Tercer Pase | F19: 0.8 | J19: Rastra Tercer Pase | K19: 31.58203389
E20: Rastra Cuarto Pase | F20: 0.8 | J20: Rastra Cuarto Pase | K20: 31.0422162
E21: Rastra Quinto Pase | F21: 0.8 | J21: Rastra Quinto Pase | K21: 31.0422162
E22: Aplicación Químico 1 | F22: 0.9 | J22: Aplicación Químico 1 | K22: 24.88068802
E23: Aplicación Químico 2 | F23: 0.9 | J23: Aplicación Químico 2 | K23: 24.88068802
E24: Aplicación Químico 3 | F24: 0.9 | J24: Aplicación Químico 3 | K24: 25.15427744
E25: Aplicación Químico 4 | F25: 0.9 | J25: Aplicación Químico 4 | K25: 30.05255043
E26: Siembra | F26: 0.9 | J26: Siembra | K26: 29.65807457
E27: Siembra y Fertilización | F27: 0.9 | J27: Siembra y Fertilización | K27: 32.84160849
E28: Acarreo Preparación (por hora) | F28: 0.5 | J28: Acarreo Preparación (por hora) | K28: 25.22703014
E29: Mantenim. Cult./Ens/Heno | J29: Mantenim. Cult./Ens/Heno
E30: Chapeo Uniformización | F30: 0.7 | J30: Chapia Uniformización | K30: 30.54738332
E31: Fertilización | F31: 0.9 | J31: Fertilización | K31: 30.77230735
E32: Cultivada | F32: 0.9 | J32: Cultivada | K32: 27.97482487
E33: Fertilizada y Cultivada | F33: 0.9 | J33: Fertilizada y Cultivada | K33: 30.77230735
E34: Aplicación Químico 1 | F34: 0.9 | J34: Aplicación Químico 1 | K34: 30.05255043
E35: Aplicación Químico 2 | F35: 0.9 | J35: Aplicación Químico 2 | K35: 30.05255043
E36: Aplicación Químico 3 | F36: 0.9 | J36: Aplicación Químico 3 | K36: 30.05255043
E37: Aplicación Químico 4 | F37: 0.9 | J37: Aplicación Químico 4 | K37: 30.05255043
E38: Acarreo Mantenimiento (por hora) | F38: 1 | J38: Acarreo Mantenimiento (por hora) | K38: 25.22703014
E39: Transporte (por hora) | F39: 1 | J39: Transporte (por hora) | K39: 24.89050289
E40: Cosecha de Ensilaje | J40: Cosecha de Ensilaje
E41: Picado y Llenado de Vagones | F41: 0.6 | J41: Picado y Llenado de Vagones | K41: 28.36665799
E42: Acarreo Silo (por hora) | F42: 1 | J42: Acarreo Silo (por hora) | K42: 19.39895573
E43: Compactación (por hora) | F43: 1 | J43: Compactación (por hora) | K43: 20.15603898
E44: Acarreo Melaza (por hora) | F44: 1 | J44: Acarreo Melaza (por hora) | K44: 14.88337906
E45: Aplicación Melaza (por hora) | F45: 1 | J45: Aplicación Melaza (por hora) | K45: 14.88337906
E46: Cosecha de Cultivos | J46: Cosecha de Cultivos
E47: Acarreos Varios (por hora) Agua | F47: 1 | J47: Acarreos Varios (por hora) (Agua) | K47: 26.71034283
E48: Combinada | F48: 0.6 | J48: Combinada | K48: 15.90842349
E49: Desgrane (por hora) | F49: 1 | J49: Desgrane (por hora) | K49: 18.96322893
E50: Cosecha Heno | J50: Cosecha Heno
E51: Segadora | F51: 0.8 | J51: Segadora | K51: 23.98486763
E52: Segadora Acarriladora | F52: 0.8 | J52: Segadora Acarriladora | K52: 24.14964212
E53: Embaladora | F53: 0.6 | J53: Embaladora | K53: 19.68420546
E54: Acarreo (por hora) | F54: 1 | J54: Acarreo (por hora) | K54: 18.418303
E55: POTREROS | J55: POTREROS
E56: Mantenimiento Potreros | J56: Mantenimiento Potreros
E57: Chapeo Uniformización | F57: 0.7 | J57: Chapia Uniformización | K57: 18.67020587
E58: Fertilización | F58: 0.9 | J58: Fertilización | K58: 19.26136391
E59: Cultivada | F59: 0.9 | J59: Cultivada | K59: 19.26136391
E60: Fertilizada y Cultivada | F60: 0.9 | J60: Fertilizada y Cultivada | K60: 19.26136391
E61: Aplicación Herbicida | F61: 0.9 | J61: Aplicación Herbicida | K61: 18.48231652
E62: Aplicación Insecticida | F62: 0.9 | J62: Aplicación Insecticida | K62: 18.78052715
E63: Aplicación Fungicida | F63: 0.9 | J63: Aplicación Fungicida | K63: 18.48231652
E64: Aplicación Nematicida | F64: 0.9 | J64: Aplicación Nematicida | K64: 18.78052715
E65: Acarreo Vario (por hora) | F65: 1 | J65: Acarreo Vario (por hora) | K65: 18.418303
E66: Transporte (por hora) | F66: 1 | J66: Transporte (por hora) | K66: 18.418303
E67: ESTABLOS | J67: ESTABLOS
E68: Mantenimiento Establos | J68: Mantenimiento Establos
E69: Recolección de Estiercol (por hora) | F69: 1 | J69: Recolección de Estiercol (por hora) | K69: 18.25560415
E70: Cargado Estiercol (por hora) | F70: 1 | J70: Cargado Estiercol (por hora) | K70: 18.25560415
E71: Recolección y Cargado de Estiercol (por hora) | F71: 1 | J71: Recolección y Cargado de Estiercol (por hora) | K71: 18.25560415
E72: Distribución de Estiercol (por hora) | F72: 1 | J72: Distribución de Estiercol (por hora) | K72: 19.38555666
E73: VARIOS | J73: VARIOS
E74: Varios | J74: Varios
E75: Chapeo General | F75: 0.7 | J75: Chapia General | K75: 18.67020587
E76: Acarreos Varios (por hora) | F76: 1 | J76: Acarreos Varios (por hora) | K76: 18.418303
E77: Volteo Composteras (por hora) | F77: 1 | J77: Volteo Composteras (por hora) | K77: 18.25560415
E78: Riego Bomba | F78: 1 | J78: Riego Bomba | K78: =500/24.4527 -> 20.44763973

Sheet Costos de Ventas
H2: 24.5752
B3: Producción de semilla Certificada de Maíz | I3: Producción de semilla Certificada de Soya
B4: Estructura de costo | I4: Estructura de costo
B5: Expresado en Lempiras | I5: Expresado en Lempiras
B7: Descripción | C7: Unidad | D7: Cantidad | E7: Costo | G7: % | I7: Descripción | J7: Unidad | K7: Cantidad | L7: Costo | N7: %
E8: Unitario | F8: Total | L8: Unitario | M8: Total
B9: Fumigación | C9: QQ | D9: 1 | E9: 0.09603177187 | F9: =D9*E9 -> 0.09603177187 | G9: =F9/$F$15 -> 0.02366423335 | I9: Fumigación | J9: QQ | K9: 1 | L9: 0.09603177187 | M9: =K9*L9 -> 0.09603177187 | N9: =M9/$M$15 -> 0.02019255241
B10: Análisis de laboratorio | C10: QQ | D10: 1 | E10: 0.2034571438 | F10: 0.2034571438 | G10: 0.05013608761 | I10: Análisis de laboratorio | J10: QQ | K10: 1 | L10: 0.2034571438 | M10: 0.2034571438 | N10: =M10/$M$15 -> 0.04278083138
B11: Empaque | C11: QQ | D11: 1 | E11: 0.8138285751 | F11: 0.8138285751 | G11: 0.2005443504 | I11: Empaque | J11: QQ | K11: 1 | L11: 0.8138285751 | M11: 0.8138285751 | N11: 0.1711233255
B12: Etiqueta | C12: QQ | D12: 1 | E12: 0.7474430956 | F12: 0.7474430956 | G12: 0.1841855824 | I12: Etiqueta | J12: QQ | K12: 1 | L12: 1.445146897 | M12: =K12*L12 -> 1.445146897 | N12: 0.3038703118
B13: Registro | C13: QQ | D13: 1 | E13: 0.162765715 | F13: 0.162765715 | G13: 0.04010887009 | I13: Registro | J13: QQ | K13: 1 | L13: 0.162765715 | M13: 0.162765715 | N13: 0.0342246651
B14: Transporte por venta | C14: QQ | D14: 1 | E14: 2.034571438 | F14: 2.034571438 | G14: 0.5013608761 | I14: Transporte por venta | J14: QQ | K14: 1 | L14: 2.034571438 | M14: 2.034571438 | N14: 0.4278083138
B15: Costo total | E15: =SUM(E9:E14) -> 4.058097739 | F15: =SUM(F9:F14) -> 4.058097739 | G15: =SUM(G9:G14) -> 1 | I15: Costo total | L15: =SUM(L9:L14) -> 4.755801541 | M15: =SUM(M9:M14) -> 4.755801541 | N15: =SUM(N9:N14) -> 1

Sheet Gastos Operativos
C2: Información del Programa
C4: Producción de Semillas | F4: Producción en Campo | I4: Procesamiento en Planta
C7: Descripción | D7: Temporada 2022 - 2023 | F7: Descripción | G7: Temporada 2022 - 2023 | I7: Descripción | J7: Temporada 2022 - 2023
C9: Salarios y beneficios | D9: xxx | F9: Salarios y beneficios | G9: xxx | I9: Salarios y beneficios | J9: xxx
C10: Servicios profesionales (asesorías, consultorías, etc.) | F10: Servicios profesionales (asesorías, consultorías, etc.) | I10: Servicios profesionales (asesorías, consultorías, etc.)
C11: Suministros (limpieza de oficinas, etc.) | F11: Suministros (limpieza de oficinas, etc.) | I11: Suministros (limpieza de oficinas, etc.)
C12: Servicios públicos (luz, agua, teléfono, internet, etc.) | F12: Servicios públicos (luz, agua, teléfono, internet, etc.) | I12: Servicios públicos (luz, agua, teléfono, internet, etc.)
C13: Mantenimiento y reparación de máquinas | D13: xxx | F13: Mantenimiento y reparación | G13: xxx | I13: Mantenimiento y reparación | J13: xxx
C14: Gastos generales | F14: Gastos generales | I14: Gastos generales
C15: Gastos financieros | F15: Gastos financieros | I15: Gastos financieros
C16: Depreciaciones | F16: Depreciaciones | I16: Depreciaciones
C17: Higiene y Seguridad (mascarillas, cascos, calzado, etc.) | F17: Higiene y Seguridad (mascarillas, cascos, calzado, etc.) | I17: Higiene y Seguridad (mascarillas, cascos, calzado, etc.)
C19: Gastos Operativos Totales | D19: =SUM(G19,J19) -> 19402.73121 | F19: Gastos Operativos | G19: =7761.48312119535*0.7 -> 5433.038185 | I19: Gastos Operativos | J19: =19956.7043198021*0.7 -> 13969.69302
C20: Producción Maíz + Soya (QQ Oro) | D20: ='Rendimientos & Supuestos '!$Y$11 -> 10000 | F20: Producción Maíz + Soya (QQ Oro) | G20: ='Rendimientos & Supuestos '!$Y$11 -> 10000 | I20: Producción Maíz + Soya (QQ Oro) | J20: ='Rendimientos & Supuestos '!$Y$11 -> 10000
C21: Gastos Operativos por QQ Oro | D21: =D19/D20 -> 1.940273121 | F21: Gastos Operativos por QQ Oro | G21: =G19/G20 -> 0.5433038185 | I21: Gastos Operativos por QQ Oro | J21: =J19/J20 -> 1.396969302

Sheet Presupuesto Cultivo Maíz
C3: Presupuesto Cultivo de Maíz
C4: Expresado en Dólares
C7: Cultivo: | D7: Maíz
C8: Área (Ha) | D8: ='Rendimientos & Supuestos '!AA8 -> 103.1991744 | U8: ANÁLISIS DEL PUNTO DE EQUILIBRIO - Producción de Semilla de Maíz
U10: 2. ENFOQUE GRÁFICO
C11: Actividad | D11: Semana | I11: Unidad | J11: Cantidad / Ha | K11: Àrea de siembra (Ha) | L11: Cantidad Total | M11: Costo / Unidad ($) | N11: Costo Total ($) | O11: % del Costo
U12: Àrea (Ha) | V12: Producción - Àrea * Rendimiento promedio / Ha | W12: Ingresos Totales - IT = P * Producción | X12: Costos Fijos - CF | Y12: Costos Variables - CV | Z12: Costos Totales CT = CF + CV | AA12: Utilidad = IT - CT
C13: Preparación de Suelo | R13: Chapeo | U13: 0 | V13: =U13*$N$102 -> 0 | W13: =$N$111*V13 -> 0 | X13: =$N$105 -> 9701.365604 | Y13: =$D$128*V13 -> 0 | Z13: =X13+Y13 -> 9701.365604 | AA13: =W13-Z13 -> -9701.365604
C14: Chapeo | D14: -4 | I14: Hr | J14: =S17 -> 1.428571429 | K14: =$D$8 -> 103.1991744 | L14: =J14*K14 -> 147.427392 | M14: ='Px Maquinaria'!K13 -> 27.71432194 | N14: =L14*M14 -> 4085.850204 | O14: =N14/$N$107 -> 0.0152938465 | R14: Area (ha) | S14: Tiempo (Hr) | U14: 1 | V14: =U14*$N$102 -> 48.45 | W14: =$N$111*V14 -> 3639.564 | X14: =$N$105 -> 9701.365604 | Y14: =$D$128*V14 -> 2494.740063 | Z14: 12196.10567 | AA14: =W14-Z14 -> -8556.541667
C15: Arado | D15: -3 | I15: Hr | J15: =S22 -> 2.222222222 | K15: =$D$8 -> 103.1991744 | L15: =J15*K15 -> 229.3314987 | M15: ='Px Maquinaria'!K16 -> 28.9023298 | N15: =L15*M15 -> 6628.214609 | O15: 0.0248102333 | R15: ='Px Maquinaria'!F13 -> 0.7 | S15: 1 | U15: 2 | V15: =U15*$N$102 -> 96.9 | W15: =$N$111*V15 -> 7279.128 | X15: =$N$105 -> 9701.365604 | Y15: =$D$128*V15 -> 4989.480126 | Z15: 14690.84573 | AA15: =W15-Z15 -> -7411.717731
C16: Rastra pesada | D16: -3 | I16: Hr | J16: =1/'Px Maquinaria'!F14 -> 1.428571429 | K16: 103.1991744 | L16: 147.427392 | M16: ='Px Maquinaria'!K14 -> 29.99832329 | N16: 4422.574568 | O16: 0.01655424776 | R16: 1 | S16: X | U16: 3 | V16: 145.35 | W16: 10918.692 | X16: 9701.365604 | Y16: 7484.220189 | Z16: 17185.58579 | AA16: -6266.893794
C17: Rastra liviana (2) | D17: 0 | I17: Hr | J17: =(1/'Px Maquinaria'!F17)*2 -> 2.666666667 | K17: 103.1991744 | L17: 275.1977984 | M17: ='Px Maquinaria'!K17 -> 30.02735894 | N17: 8263.463073 | O17: 0.03093117209 | S17: =(S15*R16)/R15 -> 1.428571429 | U17: 4 | V17: 193.8 | W17: 14558.256 | X17: 9701.365604 | Y17: 9978.960253 | Z17: 19680.32586 | AA17: -5122.069857
C18: Siembra | D18: 0 | I18: Hr | J18: =1/'Px Maquinaria'!F26 -> 1.111111111 | K18: 103.1991744 | L18: 114.6657493 | M18: ='Px Maquinaria'!K26 -> 29.65807457 | N18: 3400.765344 | O18: 0.01272948849 | R18: Arado | U18: 5 | V18: 242.25 | W18: 18197.82 | X18: 9701.365604 | Y18: 12473.70032 | Z18: 22175.06592 | AA18: -3977.24592
C19: Aplicación Herbicida | D19: 1 | I19: Hr | J19: =1/'Px Maquinaria'!F22 -> 1.111111111 | K19: 103.1991744 | L19: 114.6657493 | M19: ='Px Maquinaria'!K22 -> 24.88068802 | N19: =L19*M19 -> 2852.962736 | O19: 0.01067899506 | R19: Area (ha) | S19: Tiempo (Hr) | U19: 6 | V19: 290.7 | W19: 21837.384 | X19: 9701.365604 | Y19: 14968.44038 | Z19: 24669.80598 | AA19: -2832.421983
C20: Aplicación Insecticida/fungicida (2 + 2) | D20: 3 | E20: 5 | F20: 7 | G20: 9 | I20: Hr | J20: =(1/'Px Maquinaria'!F23)*4 -> 4.444444444 | K20: 103.1991744 | L20: 458.6629974 | M20: ='Px Maquinaria'!K23 -> 24.88068802 | N20: =L20*M20 -> 11411.85094 | O20: 0.04271598025 | R20: ='Px Maquinaria'!F16 -> 0.45 | S20: 1 | U20: 7 | V20: 339.15 | W20: 25476.948 | X20: 9701.365604 | Y20: 17463.18044 | Z20: 27164.54605 | AA20: -1687.598046
C21: Aplicación foliar | D21: 4 | I21: Hr | J21: =1/'Px Maquinaria'!F24 -> 1.111111111 | K21: 103.1991744 | L21: 114.6657493 | M21: ='Px Maquinaria'!K24 -> 25.15427744 | N21: 2884.334072 | O21: 0.01079642188 | R21: 1 | S21: X | U21: 8 | V21: 387.6 | W21: 29116.512 | X21: 9701.365604 | Y21: 19957.92051 | Z21: 29659.28611 | AA21: -542.7741094
C22: Cultivada | D22: 3 | I22: Hr | J22: =1/'Px Maquinaria'!F32 -> 1.111111111 | K22: 103.1991744 | L22: =J22*K22 -> 114.6657493 | M22: ='Px Maquinaria'!K32 -> 27.97482487 | N22: 3207.754256 | O22: 0.01200702394 | S22: =(S20*R21)/R20 -> 2.222222222 | U22: 9 | V22: 436.05 | W22: 32756.076 | X22: 9701.365604 | Y22: 22452.66057 | Z22: 32154.02617 | AA22: 602.0498275
C23: Acarreo de Cosecha | D23: 17 | I23: Hr | J23: 0 | K23: 103.1991744 | L23: 0 | M23: ='Px Maquinaria'!K47 -> 26.71034283 | N23: 0 | O23: 0 | U23: 10 | V23: 484.5 | W23: 36395.64 | X23: 9701.365604 | Y23: 24947.40063 | Z23: 34648.76624 | AA23: 1746.873764
C24: Acarreo de Agua (5) | D24: 1 | E24: 3 | F24: 5 | G24: 7 | H24: 9 | I24: Hr | J24: =(1/'Px Maquinaria'!F47)*5 -> 5 | K24: 103.1991744 | L24: 515.995872 | M24: ='Px Maquinaria'!K47 -> 26.71034283 | N24: 13782.42664 | O24: 0.0515893405 | U24: 11 | V24: 532.95 | W24: 40035.204 | X24: 9701.365604 | Y24: 27442.14069 | Z24: 37143.5063 | AA24: 2891.697701
C25: Sub Total (Preparación de suelo) | N25: =SUM(N14:N24) -> 60940.19645 | O25: 0.2281067498 | U25: 12 | V25: 581.4 | W25: 43674.768 | X25: 9701.365604 | Y25: 29936.88076 | Z25: 39638.24636 | AA25: 4036.521638
U26: 13 | V26: 629.85 | W26: 47314.332 | X26: 9701.365604 | Y26: 32431.62082 | Z26: 42132.98642 | AA26: 5181.345575
U27: 14 | V27: 678.3 | W27: 50953.896 | X27: 9701.365604 | Y27: 34926.36088 | Z27: 44627.72649 | AA27: 6326.169512
C28: Siembra | U28: 15 | V28: 726.75 | W28: 54593.46 | X28: 9701.365604 | Y28: 37421.10095 | Z28: =X28+Y28 -> 47122.46655 | AA28: 7470.993449
C29: Semilla | D29: 0 | I29: QQ | J29: ='Rendimientos & Supuestos '!D8 -> 0.6 | K29: =$D$8 -> 103.1991744 | L29: =J29*K29 -> 61.91950464 | M29: ='Rendimientos & Supuestos '!E8 -> 153.357298 | N29: =L29*M29 -> 9495.807924 | O29: =N29/$N$107 -> 0.03554399244 | U29: 16 | V29: 775.2 | W29: 58233.024 | X29: 9701.365604 | Y29: 39915.84101 | Z29: 49617.20661 | AA29: 8615.817386
C30: Tratador Gaucho | D30: 0 | I30: Gr | J30: ='Px Insumos'!U8 -> 0.1 | K30: 103.1991744 | L30: =J30*K30 -> 10.31991744 | M30: ='Px Insumos'!V8 -> 0.2302404233 | N30: 2.37606216 | O30: 8.893896776e-06 | U30: 17 | V30: 823.65 | W30: 61872.588 | X30: 9701.365604 | Y30: 42410.58107 | Z30: 52111.94668 | AA30: 9760.641323
C31: Protector Scort | D31: 0 | I31: Gr | J31: 0 | K31: 103.1991744 | L31: 0 | M31: ='Px Insumos'!V18 -> 0.5320890215 | N31: 0 | O31: 0 | U31: 18 | V31: 872.1 | W31: 65512.152 | X31: 9701.365604 | Y31: 44905.32114 | Z31: 54606.68674 | AA31: 10905.46526
C32: 12-24-12 | D32: 0 | I32: QQ | J32: ='Px Insumos'!G9 -> 2 | K32: 103.1991744 | L32: 206.3983488 | M32: ='Px Insumos'!H9 -> 18.97540967 | N32: 3916.493224 | O32: 0.01465992222 | U32: 19 | V32: 920.55 | W32: 69151.716 | X32: 9701.365604 | Y32: 47400.0612 | Z32: 57101.4268 | AA32: 12050.2892
C33: MO Siembra | D33: 0 | I33: Jornal/Hr | J33: =J18 -> 1.111111111 | K33: 103.1991744 | L33: 114.6657493 | M33: ='Px Insumos'!O28/8 -> 2.030952615 | N33: 232.8807034 | O33: 0.000871701495 | U33: 20 | V33: 969 | W33: 72791.28 | X33: 9701.365604 | Y33: 49894.80126 | Z33: 59596.16687 | AA33: 13195.11313
C34: MO Fertilización | D34: 0 | I34: Jornal/Hr | J34: =J19 -> 1.111111111 | K34: 103.1991744 | L34: 114.6657493 | M34: ='Px Insumos'!O28/8 -> 2.030952615 | N34: 232.8807034 | O34: 0.000871701495 | U34: 21 | V34: 1017.45 | W34: 76430.844 | X34: 9701.365604 | Y34: 52389.54133 | Z34: 62090.90693 | AA34: 14339.93707
C35: Sub Total (Siembra) | N35: =SUM(N29:N34) -> 13880.43862 | O35: 0.05195621155 | U35: 22 | V35: 1065.9 | W35: 80070.408 | X35: 9701.365604 | Y35: 54884.28139 | Z35: 64585.64699 | AA35: 15484.76101
U36: 23 | V36: 1114.35 | W36: 83709.972 | X36: 9701.365604 | Y36: 57379.02145 | Z36: 67080.38706 | AA36: 16629.58494
U37: 24 | V37: 1162.8 | W37: 87349.536 | X37: 9701.365604 | Y37: 59873.76152 | Z37: 69575.12712 | AA37: 17774.40888
C38: Control de Malezas | U38: 25 | V38: 1211.25 | W38: 90989.1 | X38: 9701.365604 | Y38: 62368.50158 | Z38: 72069.86718 | AA38: 18919.23282
C39: Prowl | D39: 1 | I39: Lt | J39: ='Px Insumos'!N18 -> 3 | K39: =$D$8 -> 103.1991744 | L39: =J39*K39 -> 309.5975232 | M39: ='Px Insumos'!O18 -> 14.31334781 | N39: =L39*M39 -> 4431.377031 | O39: =N39/$N$107 -> 0.01658719647 | U39: 26 | V39: 1259.7 | W39: 94628.664 | X39: 9701.365604 | Y39: 64863.24164 | Z39: 74564.60725 | AA39: 20064.05675
C40: Gesaprim 90 | D40: 1 | I40: Kg | J40: ='Px Insumos'!N19 -> 2 | K40: 103.1991744 | L40: 206.3983488 | M40: ='Px Insumos'!O19 -> 8.588008686 | N40: =L40*M40 -> 1772.550812 | O40: 0.00663487859 | U40: 27 | V40: 1308.15 | W40: 98268.228 | X40: 9701.365604 | Y40: 67357.9817 | Z40: 77059.34731 | AA40: 21208.88069
C41: Convey | D41: 5 | I41: Lt | J41: ='Px Insumos'!N21 -> 0.1 | K41: 103.1991744 | L41: 10.31991744 | M41: ='Px Insumos'!O21 -> 536.9550193 | N41: =L41*M41 -> 5541.331468 | O41: 0.02074189426 | U41: 28 | V41: 1356.6 | W41: 101907.792 | X41: 9701.365604 | Y41: 69852.72177 | Z41: 79554.08737 | AA41: 22353.70463
C42: MO Herbicida mecanizada | D42: 1 | I42: Jornal/Hr | J42: =J19 -> 1.111111111 | K42: 103.1991744 | L42: 114.6657493 | M42: ='Px Insumos'!O29/8 -> 2.187179739 | N42: 250.7946037 | O42: 0.0009387554562 | U42: 29 | V42: 1405.05 | W42: 105547.356 | X42: 9701.365604 | Y42: 72347.46183 | Z42: 82048.82743 | AA42: 23498.52857
C43: MO Convey | D43: 5 | I43: Jornal/Hr | J43: =J19 -> 1.111111111 | K43: 103.1991744 | L43: 114.6657493 | M43: ='Px Insumos'!O28/8 -> 2.030952615 | N43: 232.8807034 | O43: 0.000871701495 | U43: 30 | V43: 1453.5 | W43: 109186.92 | X43: 9701.365604 | Y43: 74842.20189 | Z43: 84543.5675 | AA43: 24643.3525
C44: Sub Total (Control de Malezas) | N44: =SUM(N39:N43) -> 12228.93462 | O44: 0.04577442627 | U44: 31 | V44: 1501.95 | W44: 112826.484 | X44: 9701.365604 | Y44: 77336.94196 | Z44: 87038.30756 | AA44: 25788.17644
U45: 32 | V45: =U45*$N$102 -> 1550.4 | W45: 116466.048 | X45: 9701.365604 | Y45: 79831.68202 | Z45: 89533.04762 | AA45: 26933.00038
C47: Control de Plagas
C48: Curyom 55EC | D48: 3 | I48: Lt | J48: ='Px Insumos'!U21 -> 0.25 | K48: =$D$8 -> 103.1991744 | L48: =J48*K48 -> 25.7997936 | M48: ='Px Insumos'!V21 -> 36.39679872 | N48: =L48*M48 -> 939.0298947 | O48: =N48/$N$107 -> 0.00351490592
C49: Mancozeb 80WP | D49: 5 | I49: Kg | J49: ='Px Insumos'!G29 -> 0.7 | K49: 103.1991744 | L49: 72.23942208 | M49: ='Px Insumos'!H29 -> 4.089527946 | N49: 295.4251354 | O49: 0.001105813098
C50: Nativo | D50: 9 | I50: Kg | J50: ='Px Insumos'!G31 -> 0.15 | K50: 103.1991744 | L50: 15.47987616 | M50: ='Px Insumos'!H31 -> 148.4498644 | N50: 2297.985518 | O50: 0.008601646172
C51: Proclaim 5SG | D51: 7 | I51: Kg | J51: ='Px Insumos'!U23 -> 0.1 | K51: 103.1991744 | L51: 10.31991744 | M51: ='Px Insumos'!V23 -> 222.879273 | N51: 2300.095697 | O51: 0.008609544837
C52: MO Aplicaciones | D52: 3 | E52: 5 | F52: 7 | G52: 9 | I52: Jornal/Hr | J52: =J20*4 -> 17.77777778 | K52: 103.1991744 | L52: 1834.651989 | M52: ='Px Insumos'!O28/8 -> 2.030952615 | N52: 3726.091255 | O52: 0.01394722392
C53: Sub Total (Control de Plagas) | N53: =SUM(N48:N52) -> 9558.6275 | O53: =N53/$N$107 -> 0.03577913395
C56: Fertilización
C57: Urea | D57: 4 | I57: QQ | J57: ='Px Insumos'!G18 -> 3 | K57: =$D$8 -> 103.1991744 | L57: =J57*K57 -> 309.5975232 | M57: ='Px Insumos'!H18 -> 17.29870321 | N57: =L57*M57 -> 5355.635669 | O57: =N57/$N$107 -> 0.02004681174
C58: Kelpak | D58: 4 | I58: Lt | J58: ='Px Insumos'!G19*0 -> 0 | K58: 103.1991744 | L58: =J58*K58 -> 0 | M58: ='Px Insumos'!H19 -> 12.67753663 | N58: =L58*M58 -> 0 | O58: 0
C59: Bayfolan | D59: 1 | I59: Lt | J59: ='Px Insumos'!G20 -> 2 | K59: 103.1991744 | L59: 206.3983488 | M59: ='Px Insumos'!H20 -> 6.134291919 | N59: =L59*M59 -> 1266.107723 | O59: 0.004739198993
C60: MO Urea | D60: 1 | I60: hr | J60: =J22 -> 1.111111111 | K60: 103.1991744 | L60: 114.6657493 | M60: ='Px Insumos'!O28/8 -> 2.030952615 | N60: =L60*M60 -> 232.8807034 | O60: 0.000871701495
C61: MO foliar | D61: 1 | I61: hr | J61: =J21 -> 1.111111111 | K61: 103.1991744 | L61: 114.6657493 | M61: ='Px Insumos'!O29/8 -> 2.187179739 | N61: =L61*M61 -> 250.7946037 | O61: 0.0009387554562
C62: Sub Total (Fetilización) | N62: =SUM(N57:N61) -> 7105.418699 | O62: =N62/$N$107 -> 0.02659646768
C65: Riego
C66: MO Instalar Sistema Riego | D66: -1 | I66: Jornal | J66: 5 | K66: =$D$8 -> 103.1991744 | L66: =J66*K66 -> 515.995872 | M66: ='Px Insumos'!O28 -> 16.24762092 | N66: =L66*M66 -> 8383.705324 | O66: =N66/$N$107 -> 0.03138125382
C67: MO Recoger Cinta | D67: 17 | I67: Jornal | J67: 4 | K67: 103.1991744 | L67: 412.7966976 | M67: ='Px Insumos'!O28 -> 16.24762092 | N67: 6706.964259 | O67: 0.02510500306
C68: Cinta | D68: -3 | I68: Rollo | J68: 0 | K68: 103.1991744 | L68: 0 | M68: ='Px Insumos'!V33 -> 143.1334781 | N68: 0 | O68: 0
C69: MO Regador | D69: 1 | I69: Jornal | J69: =100/7 -> 14.28571429 | K69: 103.1991744 | L69: 1474.27392 | M69: ='Px Insumos'!O28 -> 16.24762092 | N69: 23953.44378 | O69: 0.0896607252
C70: Bomba de riego | D70: 1 | I70: Hr | J70: 20 | K70: 103.1991744 | L70: 2063.983488 | M70: ='Px Maquinaria'!K78 -> 20.44763973 | N70: 42203.59077 | O70: 0.1579732998
C71: Sub Total (Riego) | N71: =SUM(N66:N70) -> 81247.70414 | O71: =N71/$N$107 -> 0.3041202818
C74: Cosecha
C75: MO Supervisor de Cosecha | D75: 17 | I75: Jornal/Día | J75: 1 | K75: =$D$8 -> 103.1991744 | L75: =J75*K75 -> 103.1991744 | M75: ='Px Insumos'!O30 -> 19.4971451 | N75: =L75*M75 -> 2012.089278 | O75: =N75/$N$107 -> 0.007531500917
C76: MO Corteros | D76: 17 | I76: Jornal/Día | J76: 16 | K76: 103.1991744 | L76: =J76*K76 -> 1651.186791 | M76: ='Px Insumos'!O28 -> 16.24762092 | N76: 26827.85704 | O76: 0.1004200122
C77: Sacos | D77: 17 | I77: Unidad | J77: ='Rendimientos & Supuestos '!G8/0.6 -> 166.6666667 | K77: 103.1991744 | L77: 17199.8624 | M77: ='Px Insumos'!V29 -> 0.2862669562 | N77: 4923.752257 | O77: 0.0184302183
C78: Transporte | D78: 17 | I78: Unidad | J78: =J77/'Px Insumos'!V31 -> 0.5208333333 | K78: 103.1991744 | L78: 53.74957 | M78: ='Px Insumos'!V30 -> 73.61150302 | N78: =L78*M78 -> 3956.586635 | O78: 0.01480999685
C79: Sub Total (Cosecha) | N79: =SUM(N75:N78) -> 37720.2852 | O79: =N79/$N$107 -> 0.1411917283
C82: Mantenimiento
C83: Raleo | D83: 2 | I83: Jornal/Día | J83: 0 | K83: =$D$8 -> 103.1991744 | L83: =J83*K83 -> 0 | M83: ='Px Insumos'!$O$28 -> 16.24762092 | N83: =L83*M83 -> 0 | O83: =N83/$N$107 -> 0
C84: Limpieza manual de malezas nocivas | D84: 4 | I84: Jornal/Día | J84: 0 | K84: 103.1991744 | L84: 0 | M84: ='Px Insumos'!$O$28 -> 16.24762092 | N84: 0 | O84: 0
C85: Descañuele | D85: 6 | E85: 10 | I85: Jornal/Día | J85: 5 | K85: 103.1991744 | L85: 515.995872 | M85: ='Px Insumos'!$O$28 -> 16.24762092 | N85: 8383.705324 | O85: 0.03138125382
C86: Despanojado | D86: 8 | I86: Jornal/Día | J86: 0 | K86: 103.1991744 | L86: 0 | M86: ='Px Insumos'!$O$28 -> 16.24762092 | N86: 0 | O86: 0
C87: Eliminación de machos | D87: 17 | I87: Jornal/Día | J87: 0 | K87: 103.1991744 | L87: 0 | M87: ='Px Insumos'!$O$28 -> 16.24762092 | N87: 0 | O87: =N87/$N$107 -> 0
C88: Eliminación de plantas enfermas | D88: 1 | I88: Jornal/Día | J88: 0 | K88: 103.1991744 | L88: 0 | M88: ='Px Insumos'!$O$28 -> 16.24762092 | N88: 0 | O88: =N88/$N$107 -> 0
C89: Carga y descarga de cosecha | D89: 17 | I89: Jornal/Día | J89: 1 | K89: 103.1991744 | L89: 103.1991744 | M89: ='Px Insumos'!$O$28 -> 16.24762092 | N89: 1676.741065 | O89: 0.006276250764
C90: Sub Total (Mantenimiento) | N90: =SUM(N83:N89) -> 10060.44639 | O90: =N90/$N$107 -> 0.03765750458
C93: Destrucción
C94: Rastra pesada | D94: 17 | I94: Hr | J94: =1/'Px Maquinaria'!F14 -> 1.428571429 | K94: =$D$8 -> 103.1991744 | L94: =J94*K94 -> 147.427392 | M94: ='Px Maquinaria'!K14 -> 29.99832329 | N94: =L94*M94 -> 4422.574568 | O94: =N94/$N$107 -> 0.01655424776
C95: Sub Total (Destrucción) | N95: =SUM(N94) -> 4422.574568 | O95: =N95/$N$107 -> 0.01655424776
K97: Total Costos de Producción en Campo | N97: =N25+N35+N44+N53+N62+N71+N79+N90+N95 -> 237164.6262 | O97: =N97/$N$107 -> 0.8877367517
K98: Costos de Ventas Totales ($) | N98: =N103*'Costos de Ventas'!F15 -> 20290.4887 | O98: =N98/$N$107 -> 0.07594982783
K99: Costos Variables Totales ($) | N99: =N97+N98 -> 257455.1149 | O99: =N99/$N$107 -> 0.9636865795
K102: Rendimiento promedio en QQ Oro/Ha | N102: ='Rendimientos & Supuestos '!H8 -> 48.45
K103: Producción Total en QQ Oro | N103: =N102*D8 -> 5000
K104: Gastos Operativos por QQ Oro | N104: ='Gastos Operativos'!D21 -> 1.940273121
K105: Costos Fijos Totales ($) | N105: =N103*N104 -> 9701.365604 | O105: =N105/$N$107 -> 0.03631342046
K107: Costos Totales ($) | N107: =N99+N105 -> 267156.4805 | O107: =N107/$N$107 -> 1
K109: Costo de Producción/ QQ Oro ($) | N109: =N107/N103 -> 53.4312961
K111: Precio de venta por QQ Oro ($) | N111: ='Rendimientos & Supuestos '!J8 -> 75.12
K112: Ingresos Totales ($) | N112: =N111*N103 -> 375600
K114: Utilidad Operativa ($) | N114: =N112-N107 -> 108443.5195
B120: ANÁLISIS DEL PUNTO DE EQUILIBRIO - Un solo Producto
B123: 1. ENFOQUE ALGEBRAICO | H123: c) Área en el Punto de Equilibrio
B125: Costos Fijos Totales (CF) | D125: =N105 -> 9701.365604 | E125: =_xlfn.FORMULATEXT(D125) -> =N105 | H125: Área Mínima de Siembra (Ha) = | J125: =D134/N102 -> 8.474111426
B126: Costos Variables Totales (CV) | D126: =N99 -> 257455.1149 | E126: =_xlfn.FORMULATEXT(D126) -> =N99 | J126: =_xlfn.FORMULATEXT(J125) -> =D134/N102
B127: Producción Total en QQ Oro | D127: =N103 -> 5000 | E127: =N103
B128: Costo Variable Unitario (CVU) | D128: =D126/D127 -> 51.49102297 | E128: =D126/D127
B129: Precio por QQ Oro de Maíz (P) | D129: =N111 -> 75.12 | E129: =N111
C132: a) Punto de Equilibrio Físico | F132: b) Punto de Equilibrio Monetario
C134: PEx = CF/ (P - CVU) = | D134: =D125/(D129-D128) -> 410.5706986 | F134: PE$ = P * Pex = | I134: =D129*D134 -> 30842.07088
D137: =_xlfn.FORMULATEXT(D134) -> =D125/(D129-D128) | I137: =_xlfn.FORMULATEXT(I134) -> =D129*D134
C153: Punto de Equilibrio
C154: Punto de Equilibrio Físico (QQ Oro de Maíz) = | D154: =D134 -> 410.5706986
C155: Punto de Equilibrio Monetario ($) = | D155: =I134 -> 30842.07088
C156: Área Mínima de Siembra (Ha) = | D156: =J125 -> 8.474111426

Sheet Presupuesto Cultivo Soya
C3: Presupuesto Cultivo de Soya
C4: Expresado en Dólares
C7: Cultivo: | D7: Soya
C8: Área (Ha) | D8: ='Rendimientos & Supuestos '!AA9 -> 230.9922271
C11: Actividad | D11: Semana | I11: Unidad | J11: Cantidad / Ha | K11: Àrea de siembra (Ha) | L11: Cantidad Total | M11: Costo / Unidad ($) | N11: Costo Total ($) | O11: % del Costo
C13: Preparación de Suelo | S13: Chapeo
C14: Chapeo | D14: -4 | I14: Hr | J14: =T17 -> 1.428571429 | K14: =$D$8 -> 230.9922271 | L14: =J14*K14 -> 329.9888959 | M14: ='Px Maquinaria'!K13 -> 27.71432194 | N14: =L14*M14 -> 9145.418495 | O14: =N14/$N$108 -> 0.01663355305 | S14: Area (ha) | T14: Tiempo (Hr)
C15: Arado | D15: -3 | I15: Hr | J15: =T22 -> 2.222222222 | K15: =$D$8 -> 230.9922271 | L15: =J15*K15 -> 513.3160602 | M15: ='Px Maquinaria'!K16 -> 28.9023298 | N15: =L15*M15 -> 14836.03007 | O15: =N15/$N$108 -> 0.02698355392 | S15: ='Px Maquinaria'!F13 -> 0.7 | T15: 1
C16: Rastra pesada | D16: -3 | I16: Hr | J16: =1/'Px Maquinaria'!F14 -> 1.428571429 | K16: 230.9922271 | L16: 329.9888959 | M16: ='Px Maquinaria'!K14 -> 29.99832329 | N16: 9899.113582 | O16: 0.01800436262 | S16: 1 | T16: X
C17: Rastra liviana (2) | D17: 0 | I17: Hr | J17: =(1/'Px Maquinaria'!F17)*2 -> 2.666666667 | K17: 230.9922271 | L17: 615.9792723 | M17: ='Px Maquinaria'!K17 -> 30.02735894 | N17: 18496.23071 | O17: 0.03364067318 | T17: =(T15*S16)/S15 -> 1.428571429
C18: Siembra | D18: 0 | I18: Hr | J18: =1/'Px Maquinaria'!F26 -> 1.111111111 | K18: 230.9922271 | L18: 256.6580301 | M18: ='Px Maquinaria'!K26 -> 29.65807457 | N18: 7611.982996 | O18: 0.01384456305 | S18: Arado
C19: Aplicación Herbicida | D19: 1 | I19: Hr | J19: =1/'Px Maquinaria'!F22 -> 1.111111111 | K19: 230.9922271 | L19: 256.6580301 | M19: ='Px Maquinaria'!K22 -> 24.88068802 | N19: 6385.828376 | O19: 0.011614451 | S19: Area (ha) | T19: Tiempo (Hr)
C20: Aplicación Insecticida/fungicida (2 + 2) | D20: 3 | E20: 5 | F20: 7 | G20: 9 | H20: 10 | I20: Hr | J20: =(1/'Px Maquinaria'!F23)*5 -> 5.555555556 | K20: 230.9922271 | L20: 1283.290151 | M20: ='Px Maquinaria'!K23 -> 24.88068802 | N20: 31929.14188 | O20: 0.05807225502 | S20: ='Px Maquinaria'!F16 -> 0.45 | T20: 1
C21: Aplicación foliar | D21: 4 | I21: Hr | J21: =1/'Px Maquinaria'!F24 -> 1.111111111 | K21: 230.9922271 | L21: 256.6580301 | M21: ='Px Maquinaria'!K24 -> 25.15427744 | N21: 6456.047297 | O21: 0.01174216415 | S21: 1 | T21: X
C22: Cultivada | D22: 3 | I22: Hr | J22: =1/'Px Maquinaria'!F32*0 -> 0 | K22: 230.9922271 | L22: =J22*K22 -> 0 | M22: ='Px Maquinaria'!K32 -> 27.97482487 | N22: =L22*M22 -> 0 | O22: 0 | T22: =(T20*S21)/S20 -> 2.222222222
C23: Acarreo de Cosecha | D23: 17 | I23: Hr | J23: 0 | K23: 230.9922271 | L23: 0 | M23: ='Px Maquinaria'!K47 -> 26.71034283 | N23: =L23*M23 -> 0 | O23: 0
C24: Acarreo de Agua (5) | D24: 1 | E24: 3 | F24: 5 | G24: 7 | H24: 9 | I24: Hr | J24: =(1/'Px Maquinaria'!F47)*5 -> 5 | K24: 230.9922271 | L24: =J24*K24 -> 1154.961136 | M24: ='Px Maquinaria'!K47 -> 26.71034283 | N24: =L24*M24 -> 30849.40788 | O24: 0.05610845066
C25: Trilladora mecánica | D25: 10 | I25: Hr | J25: ='Rendimientos & Supuestos '!G9 -> 35 | K25: =$D$8 -> 230.9922271 | L25: =J25*K25 -> 8084.727949 | M25: 1.017285719 | N25: =L25*M25 -> 8224.478284 | O25: =N25/$N$108 -> 0.01495856049
C26: Sub Total (Preparación de suelo) | N26: =SUM(N14:N25) -> 143833.6796 | O26: =N26/$N$108 -> 0.2616025871
C29: Siembra
C30: Semilla | D30: 0 | I30: QQ | J30: ='Rendimientos & Supuestos '!D9 -> 1 | K30: =$D$8 -> 230.9922271 | L30: =J30*K30 -> 230.9922271 | M30: ='Rendimientos & Supuestos '!E8 -> 153.357298 | N30: =L30*M30 -> 35424.3438 | O30: =N30/$N$108 -> 0.06442927702
C31: Tratador Gaucho | D31: 0 | I31: Gr | J31: ='Px Insumos'!U8 -> 0.1 | K31: 230.9922271 | L31: =J31*K31 -> 23.09922271 | M31: ='Px Insumos'!V8 -> 0.2302404233 | N31: 5.318374816 | O31: 9.672982123e-06
C32: Protector Scort | D32: 0 | I32: Gr | J32: 0 | K32: 230.9922271 | L32: 0 | M32: ='Px Insumos'!V18 -> 0.5320890215 | N32: 0 | O32: 0
C33: 12-24-12 | D33: 0 | I33: QQ | J33: ='Px Insumos'!G9-1 -> 1 | K33: 230.9922271 | L33: 230.9922271 | M33: ='Px Insumos'!H9 -> 18.97540967 | N33: 4383.17214 | O33: 0.00797204921
C34: MO Siembra | D34: 0 | I34: Jornal | J34: =J18 -> 1.111111111 | K34: 230.9922271 | L34: 256.6580301 | M34: ='Px Insumos'!O28 -> 16.24762092 | N34: 4170.082379 | O34: 0.007584484678
C35: MO Fertilización | D35: 0 | I35: Jornal | J35: =J19 -> 1.111111111 | K35: 230.9922271 | L35: 256.6580301 | M35: ='Px Insumos'!O28 -> 16.24762092 | N35: =L35*M35 -> 4170.082379 | O35: 0.007584484678
C36: Sub Total (Siembra) | N36: =SUM(N30:N35) -> 48152.99907 | O36: =N36/$N$108 -> 0.08757996857
C39: Control de Malezas
C40: Flex | D40: 1 | I40: Lt | J40: ='Px Insumos'!N11 -> 0.6 | K40: =$D$8 -> 230.9922271 | L40: =J40*K40 -> 138.5953363 | M40: ='Px Insumos'!O11 -> 28.42221922 | N40: =L40*M40 -> 3939.187031 | O40: =N40/$N$108 -> 0.007164535605
C41: Fusilade | D41: 1 | I41: Kg | J41: ='Px Insumos'!N12 -> 1 | K41: 230.9922271 | L41: 230.9922271 | M41: ='Px Insumos'!O12 -> 27.35894196 | N41: =L41*M41 -> 6319.702934 | O41: 0.01149418302
C42: Prowl | D42: 5 | I42: Lt | J42: 0 | K42: 230.9922271 | L42: 0 | M42: ='Px Insumos'!O18 -> 14.31334781 | N42: =L42*M42 -> 0 | O42: 0
C43: MO Herbicida | D43: 1 | I43: Hr | J43: =J19 -> 1.111111111 | K43: 230.9922271 | L43: 256.6580301 | M43: ='Px Insumos'!O29/8 -> 2.187179739 | N43: 561.3572433 | O43: 0.001020988322
C44: MO Flex con Fusilade | D44: 5 | I44: Hr | J44: =J19 -> 1.111111111 | K44: 230.9922271 | L44: 256.6580301 | M44: ='Px Insumos'!O28/8 -> 2.030952615 | N44: 521.2602973 | O44: 0.0009480605847
C45: Sub Total (Control de Malezas) | N45: =SUM(N40:N44) -> 11341.50751 | O45: =N45/$N$108 -> 0.02062776753
C48: Control de Plagas
C49: Connet | D49: 3 | I49: Lt | J49: ='Px Insumos'!U15 -> 0.45 | K49: =$D$8 -> 230.9922271 | L49: =J49*K49 -> 103.9465022 | M49: ='Px Insumos'!V15 -> 29.15833425 | N49: =L49*M49 -> 3030.906856 | O49: =N49/$N$108 -> 0.005512568942
C50: Nativo | D50: 5 | I50: Kg | J50: ='Px Insumos'!G31 -> 0.15 | K50: 230.9922271 | L50: 34.64883407 | M50: ='Px Insumos'!H31 -> 148.4498644 | N50: =L50*M50 -> 5143.61472 | O50: 0.009355131024
C51: Amistar (2) | D51: 7 | F51: 10 | I51: Kg | J51: ='Px Insumos'!G34*2 -> 0.24 | K51: 230.9922271 | L51: 55.43813451 | M51: ='Px Insumos'!H34 -> 205.2943029 | N51: 11381.13318 | O51: 0.02069983812
C52: Engeo | D52: 9 | I52: Kg | J52: ='Px Insumos'!U10 -> 0.3 | K52: 230.9922271 | L52: 69.29766813 | M52: ='Px Insumos'!V10 -> 82.36309283 | N52: 5707.570273 | O52: 0.01038084511
C53: MO Aplicaciones | D53: 3 | E53: 5 | F53: 7 | G53: 9 | I53: Jornal/Hr | J53: =J20 -> 5.555555556 | K53: 230.9922271 | L53: 1283.290151 | M53: ='Px Insumos'!O28 -> 16.24762092 | N53: 20850.41189 | O53: 0.03792242339
C54: Sub Total (Control de Plagas) | N54: =SUM(N49:N53) -> 46113.63692 | O54: =N54/$N$108 -> 0.08387080659
C57: Fertilización
C58: Urea | D58: 4 | I58: QQ | J58: ='Px Insumos'!G18 -> 3 | K58: =$D$8 -> 230.9922271 | L58: =J58*K58 -> 692.9766813 | M58: ='Px Insumos'!H18 -> 17.29870321 | N58: =L58*M58 -> 11987.59794 | O58: =N58/$N$108 -> 0.02180286734
C59: KCL | D59: 4 | I59: QQ | J59: ='Px Insumos'!G13 -> 1 | K59: 230.9922271 | L59: =J59*K59 -> 230.9922271 | M59: ='Px Insumos'!H13 -> 17.58497017 | N59: =L59*M59 -> 4061.991423 | O59: 0.007387890432
C60: Bayfolan | D60: 1 | I60: Lt | J60: ='Px Insumos'!G20-1 -> 1 | K60: 230.9922271 | L60: 230.9922271 | M60: ='Px Insumos'!H20 -> 6.134291919 | N60: =L60*M60 -> 1416.973752 | O60: 0.002577171081
C61: MO Urea | D61: 1 | I61: Jornal | J61: =J22 -> 0 | K61: 230.9922271 | L61: 0 | M61: ='Px Insumos'!O28/8 -> 2.030952615 | N61: =L61*M61 -> 0 | O61: 0
C62: MO foliar | D62: 1 | I62: Jornal | J62: =J21 -> 1.111111111 | K62: 230.9922271 | L62: 256.6580301 | M62: ='Px Insumos'!O29/8 -> 2.187179739 | N62: =L62*M62 -> 561.3572433 | O62: 0.001020988322
C63: Sub Total (Fetilización) | N63: =SUM(N58:N62) -> 18027.92036 | O63: =N63/$N$108 -> 0.03278891718
C66: Riego
C67: MO Instalar Sistema Riego | D67: -1 | I67: Jornal | J67: 5 | K67: =$D$8 -> 230.9922271 | L67: =J67*K67 -> 1154.961136 | M67: ='Px Insumos'!O28 -> 16.24762092 | N67: =L67*M67 -> 18765.3707 | O67: =N67/$N$108 -> 0.03413018105
C68: MO Recoger Cinta | D68: 13 | I68: Jornal | J68: 4 | K68: 230.9922271 | L68: 923.9689084 | M68: ='Px Insumos'!O28 -> 16.24762092 | N68: 15012.29656 | O68: 0.02730414484
C69: Cinta | D69: -3 | I69: Rollo | J69: 0 | K69: 230.9922271 | L69: 0 | M69: ='Px Insumos'!V33 -> 143.1334781 | N69: 0 | O69: 0
C70: MO Regador | D70: 1 | I70: Jornal | J70: =70/7 -> 10 | K70: 230.9922271 | L70: 2309.922271 | M70: ='Px Insumos'!O28 -> 16.24762092 | N70: 37530.74141 | O70: 0.0682603621
C71: Bomba de riego | D71: 1 | I71: Hr | J71: 14 | K71: 230.9922271 | L71: 3233.89118 | M71: ='Px Maquinaria'!K78 -> 20.44763973 | N71: 66125.44176 | O71: 0.1202679838
C72: Sub Total (Riego) | N72: =SUM(N67:N71) -> 137433.8504 | O72: =N72/$N$108 -> 0.2499626718
C75: Cosecha
C76: MO Supervisor de Cosecha | D76: 13 | I76: Jornal/Día | J76: 1 | K76: =$D$8 -> 230.9922271 | L76: =J76*K76 -> 230.9922271 | M76: ='Px Insumos'!O30 -> 19.4971451 | N76: =L76*M76 -> 4503.688969 | O76: =N76/$N$108 -> 0.008191243452
C77: MO Corteros | D77: 13 | I77: Jornal/Día | J77: 13 | K77: 230.9922271 | L77: =J77*K77 -> 3002.898952 | M77: ='Px Insumos'!O28 -> 16.24762092 | N77: 48789.96383 | O77: 0.08873847073
C78: Sacos | D78: 13 | I78: Unidad | J78: ='Rendimientos & Supuestos '!G9/0.6 -> 58.33333333 | K78: 230.9922271 | L78: 13474.54658 | M78: ='Px Insumos'!V29 -> 0.2862669562 | N78: 3857.317436 | O78: 0.007015632387
C79: Transporte | D79: 13 | I79: Unidad | J79: =J78/'Px Insumos'!V31 -> 0.1822916667 | K79: 230.9922271 | L79: 42.10795807 | M79: ='Px Insumos'!V30 -> 73.61150302 | N79: =L79*M79 -> 3099.630083 | O79: 0.005637561739
C80: Sub Total (Cosecha) | N80: =SUM(N76:N79) -> 60250.60032 | O80: =N80/$N$108 -> 0.1095829083
C83: Mantenimiento
C84: Raleo | D84: 2 | I84: Jornal/Día | J84: 0 | K84: =$D$8 -> 230.9922271 | L84: =J84*K84 -> 0 | M84: ='Px Insumos'!$O$28 -> 16.24762092 | N84: =L84*M84 -> 0 | O84: =N84/$N$108 -> 0
C85: Limpieza manual de malezas nocivas | D85: 4 | I85: Jornal/Día | J85: 0 | K85: 230.9922271 | L85: 0 | M85: ='Px Insumos'!$O$28 -> 16.24762092 | N85: 0 | O85: 0
C86: Descañuele | D86: 6 | E86: 10 | I86: Jornal/Día | J86: 5 | K86: 230.9922271 | L86: 1154.961136 | M86: ='Px Insumos'!$O$28 -> 16.24762092 | N86: 18765.3707 | O86: 0.03413018105
C87: Despanojado | D87: 8 | I87: Jornal/Día | J87: 0 | K87: 230.9922271 | L87: 0 | M87: ='Px Insumos'!$O$28 -> 16.24762092 | N87: 0 | O87: 0
C88: Eliminación de machos | D88: 13 | I88: Jornal/Día | J88: 0 | K88: 230.9922271 | L88: 0 | M88: ='Px Insumos'!$O$28 -> 16.24762092 | N88: 0 | O88: 0
C89: Eliminación de plantas enfermas | D89: 1 | I89: Jornal/Día | J89: 5 | K89: 230.9922271 | L89: 1154.961136 | M89: ='Px Insumos'!$O$28 -> 16.24762092 | N89: 18765.3707 | O89: 0.03413018105
C90: Carga y descarga de cosecha | D90: 13 | I90: Jornal/Día | J90: 1 | K90: 230.9922271 | L90: 230.9922271 | M90: ='Px Insumos'!$O$28 -> 16.24762092 | N90: 3753.074141 | O90: 0.00682603621
C91: Sub Total (Mantenimiento) | N91: =SUM(N84:N90) -> 41283.81555 | O91: =N91/$N$108 -> 0.07508639831
C94: Destrucción
C95: Rastra pesada | D95: 17 | I95: Hr | J95: =1/'Px Maquinaria'!F14 -> 1.428571429 | K95: =$D$8 -> 230.9922271 | L95: =J95*K95 -> 329.9888959 | M95: ='Px Maquinaria'!K14 -> 29.99832329 | N95: =L95*M95 -> 9899.113582 | O95: =N95/$N$108 -> 0.01800436262
C96: Sub Total (Destrucción) | N96: =SUM(N95) -> 9899.113582 | O96: =N96/$N$108 -> 0.01800436262
K98: Total Costos de Producción en Campo | N98: =N26+N36+N45+N54+N63+N72+N80+N91+N96 -> 516337.1233 | O98: =N98/$N$108 -> 0.939106388
K99: Costos de Ventas Totales ($) | N99: =N104*'Costos de Ventas'!M15 -> 23779.0077 | O99: =N99/$N$108 -> 0.0432489105
K100: Costos Variables Totales ($) | N100: =N98+N99 -> 540116.131 | O100: =N100/$N$108 -> 0.9823552985
K103: Rendimiento promedio en QQ Oro/Ha | N103: ='Rendimientos & Supuestos '!H9 -> 21.64575
K104: Producción Total en QQ Oro | N104: =N103*D8 -> 5000
K105: Gastos Operativos por QQ Oro | N105: ='Gastos Operativos'!D21 -> 1.940273121
K106: Costos Fijos Totales ($) | N106: =N104*N105 -> 9701.365604 | O106: =N106/$N$108 -> 0.01764470149
K108: Costos Totales ($) | N108: =N100+N106 -> 549817.4966 | O108: =N108/$N$108 -> 1
K110: Costo de Producción/ QQ Oro ($) | N110: =N108/N104 -> 109.9634993
K112: Precio de venta por QQ Oro ($) | N112: ='Rendimientos & Supuestos '!J9 -> 143.1334
K113: Ingresos Totales ($) | N113: =N112*N104 -> 715667
K115: Utilidad Operativa ($) | N115: =N113-N108 -> 165849.5034
B120: ANÁLISIS DEL PUNTO DE EQUILIBRIO - Un solo Producto
B123: 1. ENFOQUE ALGEBRAICO
B125: Costos Fijos Totales (CF) | D125: =N106 -> 9701.365604 | E125: =_xlfn.FORMULATEXT(D125) -> =N106
B126: Costos Variables Totales (CV) | D126: =N100 -> 540116.131 | E126: =_xlfn.FORMULATEXT(D126) -> =N100
B127: Producción Total en QQ Oro | D127: =N104 -> 5000 | E127: =N104
B128: Costo Variable Unitario (CVU) | D128: =D126/D127 -> 108.0232262 | E128: =D126/D127
B129: Precio por QQ Oro de Maíz (P) | D129: =N112 -> 143.1334 | E129: =N112
C132: a) Punto de Equilibrio Físico | F132: b) Punto de Equilibrio Monetario
C134: PEx = CF/ (P - CVU) | D134: =D125/(D129-D128) -> 276.3120929 | F134: PE$ = P * PEx | I134: =D129*D134 -> 39549.48932
D137: =_xlfn.FORMULATEXT(D134) -> =D125/(D129-D128) | I137: =_xlfn.FORMULATEXT(I134) -> =D129*D134

Sheet Presupuesto General (hidden)
C3: Presupuesto General de la Finca
C4: Expresado en Dólares
C8: Actividad | D8: Unidad | E8: Cantidad Total | F8: Costo Total ($) | G8: % del Costo
C10: Preparación de Suelo
C11: Chapeo | D11: Hr | E11: ='Presupuesto Cultivo Maíz'!L14+'Presupuesto Cultivo Soya'!L14 -> 477.4162879 | F11: ='Presupuesto Cultivo Maíz'!N14+'Presupuesto Cultivo Soya'!N14 -> 13231.2687 | G11: =F11/$F$112 -> 0.01619545918
C12: Arado | D12: Hr | E12: ='Presupuesto Cultivo Maíz'!L15+'Presupuesto Cultivo Soya'!L15 -> 742.6475589 | F12: ='Presupuesto Cultivo Maíz'!N15+'Presupuesto Cultivo Soya'!N15 -> 21464.24468 | G12: 0.02627286214
C13: Rastra pesada | D13: Hr | E13: ='Presupuesto Cultivo Maíz'!L16+'Presupuesto Cultivo Soya'!L16 -> 477.4162879 | F13: ='Presupuesto Cultivo Maíz'!N16+'Presupuesto Cultivo Soya'!N16 -> 14321.68815 | G13: 0.01753016442
C14: Rastra liviana (2) | D14: Hr | E14: ='Presupuesto Cultivo Maíz'!L17+'Presupuesto Cultivo Soya'!L17 -> 891.1770707 | F14: ='Presupuesto Cultivo Maíz'!N17+'Presupuesto Cultivo Soya'!N17 -> 26759.69378 | G14: 0.03275464646
C15: Siembra | D15: Hr | E15: ='Presupuesto Cultivo Maíz'!L18+'Presupuesto Cultivo Soya'!L18 -> 371.3237795 | F15: ='Presupuesto Cultivo Maíz'!N18+'Presupuesto Cultivo Soya'!N18 -> 11012.74834 | G15: 0.01347992549
C16: Aplicación Herbicida | D16: Hr | E16: ='Presupuesto Cultivo Maíz'!L19+'Presupuesto Cultivo Soya'!L19 -> 371.3237795 | F16: ='Presupuesto Cultivo Maíz'!N19+'Presupuesto Cultivo Soya'!N19 -> 9238.791112 | G16: 0.01130855005
C17: Aplicación Insecticida/fungicida (2 + 2) | D17: Hr | E17: ='Presupuesto Cultivo Maíz'!L20+'Presupuesto Cultivo Soya'!L20 -> 1741.953148 | F17: ='Presupuesto Cultivo Maíz'!N20+'Presupuesto Cultivo Soya'!N20 -> 43340.99282 | G17: 0.05305064058
C18: Aplicación foliar | D18: Hr | E18: ='Presupuesto Cultivo Maíz'!L21+'Presupuesto Cultivo Soya'!L21 -> 371.3237795 | F18: ='Presupuesto Cultivo Maíz'!N21+'Presupuesto Cultivo Soya'!N21 -> 9340.381369 | G18: 0.01143289949
C19: Cultivada | D19: Hr | E19: ='Presupuesto Cultivo Maíz'!L22+'Presupuesto Cultivo Soya'!L22 -> 114.6657493 | F19: ='Presupuesto Cultivo Maíz'!N22+'Presupuesto Cultivo Soya'!N22 -> 3207.754256 | G19: 0.003926384861
C20: Acarreo de Cosecha | D20: Hr | E20: ='Presupuesto Cultivo Maíz'!L23+'Presupuesto Cultivo Soya'!L23 -> 0 | F20: ='Presupuesto Cultivo Maíz'!N23+'Presupuesto Cultivo Soya'!N23 -> 0 | G20: 0
C21: Acarreo de Agua (5) | D21: Hr | E21: ='Presupuesto Cultivo Maíz'!L24+'Presupuesto Cultivo Soya'!L24 -> 1670.957008 | F21: ='Presupuesto Cultivo Maíz'!N24+'Presupuesto Cultivo Soya'!N24 -> 44631.83452 | G21: 0.0546306685
C22: Trilladora mecánica | D22: Hr | E22: ='Presupuesto Cultivo Soya'!L25 -> 8084.727949 | F22: ='Presupuesto Cultivo Soya'!N25 -> 8224.478284 | G22: 0.01006700154
C23: Sub Total (Preparación de suelo) | F23: =SUM(F11:F22) -> 204773.876 | G23: 0.2506492027
C26: Siembra
C27: Semilla maíz | D27: QQ | E27: ='Presupuesto Cultivo Maíz'!L29 -> 61.91950464 | F27: ='Presupuesto Cultivo Maíz'!N29 -> 9495.807924 | G27: =F27/$F$112 -> 0.01162314613
C28: Semilla soya | D28: QQ | E28: ='Presupuesto Cultivo Soya'!L30 -> 230.9922271 | F28: ='Presupuesto Cultivo Soya'!N30 -> 35424.3438 | G28: =F28/$F$112 -> 0.04336043105
C29: Tratador Gaucho | D29: Gr | E29: ='Presupuesto Cultivo Maíz'!L30+'Presupuesto Cultivo Soya'!L31 -> 33.41914015 | F29: ='Presupuesto Cultivo Maíz'!N30+'Presupuesto Cultivo Soya'!N31 -> 7.694436976 | G29: 9.418215503e-06
C30: Protector Scort | D30: Gr | E30: ='Presupuesto Cultivo Maíz'!L31+'Presupuesto Cultivo Soya'!L32 -> 0 | F30: ='Presupuesto Cultivo Maíz'!N31+'Presupuesto Cultivo Soya'!N32 -> 0 | G30: =F30/$F$112 -> 0
C31: 12-24-12 | D31: QQ | E31: ='Presupuesto Cultivo Maíz'!L32+'Presupuesto Cultivo Soya'!L33 -> 437.3905759 | F31: ='Presupuesto Cultivo Maíz'!N32+'Presupuesto Cultivo Soya'!N33 -> 8299.665363 | G31: =F31/$F$112 -> 0.01015903272
C32: MO Siembra | D32: Jornal/Hr | E32: ='Presupuesto Cultivo Maíz'!L33+'Presupuesto Cultivo Soya'!L34 -> 371.3237795 | F32: ='Presupuesto Cultivo Maíz'!N33+'Presupuesto Cultivo Soya'!N34 -> 4402.963082 | G32: =F32/$F$112 -> 0.00538935536
C33: MO Fertilización | D33: Jornal/Hr | E33: ='Presupuesto Cultivo Maíz'!L34+'Presupuesto Cultivo Soya'!L35 -> 371.3237795 | F33: ='Presupuesto Cultivo Maíz'!N34+'Presupuesto Cultivo Soya'!N35 -> 4402.963082 | G33: =F33/$F$112 -> 0.00538935536
C34: Sub Total (Siembra) | F34: =SUM(F27:F33) -> 62033.43769 | G34: =F34/$F$112 -> 0.07593073883
C37: Control de Malezas
C38: Prowl | D38: Lt | E38: ='Presupuesto Cultivo Maíz'!L39+'Presupuesto Cultivo Soya'!L42 -> 309.5975232 | F38: ='Presupuesto Cultivo Maíz'!N39+'Presupuesto Cultivo Soya'!N42 -> 4431.377031 | G38: =F38/$F$112 -> 0.005424134863
C39: Gesaprim 90 | D39: Kg | E39: ='Presupuesto Cultivo Maíz'!L40 -> 206.3983488 | F39: ='Presupuesto Cultivo Maíz'!N40 -> 1772.550812 | G39: =F39/$F$112 -> 0.002169653945
C40: Convey | D40: Lt | E40: ='Presupuesto Cultivo Maíz'!L41 -> 10.31991744 | F40: ='Presupuesto Cultivo Maíz'!N41 -> 5541.331468 | G40: =F40/$F$112 -> 0.0067827515
C41: Flex | D41: Lt | E41: ='Presupuesto Cultivo Soya'!L40 -> 138.5953363 | F41: ='Presupuesto Cultivo Soya'!N40 -> 3939.187031 | G41: 0.004821679932
C42: Fusilade | D42: Kg | E42: ='Presupuesto Cultivo Soya'!L41 -> 230.9922271 | F42: ='Presupuesto Cultivo Soya'!N41 -> 6319.702934 | G42: 0.007735500899
C43: MO Herbicida mecanizada | D43: Jornal/Hr | E43: ='Presupuesto Cultivo Maíz'!J42+'Presupuesto Cultivo Soya'!L43 -> 257.7691412 | F43: ='Presupuesto Cultivo Maíz'!N42+'Presupuesto Cultivo Soya'!N43 -> 812.151847 | G43: 0.000994097572
C44: MO Convey | D44: Jornal/Hr | E44: ='Presupuesto Cultivo Maíz'!J43+'Presupuesto Cultivo Soya'!J44 -> 2.222222222 | F44: ='Presupuesto Cultivo Maíz'!N43+'Presupuesto Cultivo Soya'!N44 -> 754.1410008 | G44: 0.0009230906025
C45: Sub Total (Control de Malezas) | F45: =SUM(F38:F44) -> 23570.44212 | G45: =F45/$F$112 -> 0.02885090931
C48: Control de Plagas
C49: Curyom 55EC | D49: Lt | E49: ='Presupuesto Cultivo Maíz'!L48 -> 25.7997936 | F49: ='Presupuesto Cultivo Maíz'!N48 -> 939.0298947 | G49: =F49/$F$112 -> 0.001149400007
C50: Mancozeb 80WP | D50: Kg | E50: ='Presupuesto Cultivo Maíz'!L49 -> 72.23942208 | F50: ='Presupuesto Cultivo Maíz'!N49 -> 295.4251354 | G50: 0.0003616089908
C51: Nativo | D51: Kg | E51: ='Presupuesto Cultivo Maíz'!L50+'Presupuesto Cultivo Soya'!L50 -> 50.12871023 | F51: ='Presupuesto Cultivo Maíz'!N50+'Presupuesto Cultivo Soya'!N50 -> 7441.600237 | G51: 0.009108735952
C52: Proclaim 5SG | D52: Kg | E52: ='Presupuesto Cultivo Maíz'!L51 -> 10.31991744 | F52: ='Presupuesto Cultivo Maíz'!N51 -> 2300.095697 | G52: 0.002815384286
C53: Connet | D53: Lt | E53: ='Presupuesto Cultivo Soya'!L49 -> 103.9465022 | F53: ='Presupuesto Cultivo Soya'!N49 -> 3030.906856 | G53: 0.00370991848
C54: Amistar (2) | D54: Kg | E54: ='Presupuesto Cultivo Soya'!L51 -> 55.43813451 | F54: ='Presupuesto Cultivo Soya'!N51 -> 11381.13318 | G54: 0.01393083929
C55: Engeo | D55: Kg | E55: ='Presupuesto Cultivo Soya'!L52 -> 69.29766813 | F55: ='Presupuesto Cultivo Soya'!N52 -> 5707.570273 | G55: 0.00698623265
C56: MO Aplicaciones | D56: Jornal/Hr | E56: ='Presupuesto Cultivo Maíz'!L52+'Presupuesto Cultivo Soya'!L53 -> 3117.94214 | F56: ='Presupuesto Cultivo Maíz'!N52+'Presupuesto Cultivo Soya'!N53 -> 24576.50315 | G56: 0.03008235738
C57: Sub Total (Control de Plagas) | F57: =SUM(F49:F56) -> 55672.26442 | G57: 0.06814447703
C60: Fertilización
C61: Urea | D61: QQ | E61: ='Presupuesto Cultivo Maíz'!L57+'Presupuesto Cultivo Soya'!L58 -> 1002.574205 | F61: ='Presupuesto Cultivo Maíz'!N57+'Presupuesto Cultivo Soya'!N58 -> 17343.23361 | G61: =F61/$F$112 -> 0.02122862429
C62: Kelpak | D62: Lt | E62: ='Presupuesto Cultivo Maíz'!L58 -> 0 | F62: ='Presupuesto Cultivo Maíz'!N58 -> 0 | G62: =F62/$F$112 -> 0
C63: Bayfolan | D63: Lt | E63: ='Presupuesto Cultivo Maíz'!L59+'Presupuesto Cultivo Soya'!L60 -> 437.3905759 | F63: ='Presupuesto Cultivo Maíz'!N59+'Presupuesto Cultivo Soya'!N60 -> 2683.081475 | G63: =F63/$F$112 -> 0.00328417006
C64: KCL | D64: QQ | E64: ='Presupuesto Cultivo Soya'!L59 -> 230.9922271 | F64: ='Presupuesto Cultivo Soya'!N59 -> 4061.991423 | G64: 0.004971996093
C65: MO Urea | D65: hr | E65: ='Presupuesto Cultivo Maíz'!L60+'Presupuesto Cultivo Soya'!L61 -> 114.6657493 | F65: ='Presupuesto Cultivo Maíz'!N60+'Presupuesto Cultivo Soya'!N61 -> 232.8807034 | G65: 0.0002850527801
C66: MO foliar | D66: hr | E66: ='Presupuesto Cultivo Maíz'!L61+'Presupuesto Cultivo Soya'!L62 -> 371.3237795 | F66: ='Presupuesto Cultivo Maíz'!N61+'Presupuesto Cultivo Soya'!N62 -> 812.151847 | G66: 0.000994097572
C67: Sub Total (Fetilización) | F67: =SUM(F61:F66) -> 25133.33906 | G67: =F67/$F$112 -> 0.03076394079
C70: Riego
C71: MO Instalar Sistema Riego | D71: Jornal | E71: ='Presupuesto Cultivo Maíz'!L66+'Presupuesto Cultivo Soya'!L67 -> 1670.957008 | F71: ='Presupuesto Cultivo Maíz'!N66+'Presupuesto Cultivo Soya'!N67 -> 27149.07603 | G71: =F71/$F$112 -> 0.03323126169
C72: MO Recoger Cinta | D72: Jornal | E72: ='Presupuesto Cultivo Maíz'!L67+'Presupuesto Cultivo Soya'!L68 -> 1336.765606 | F72: ='Presupuesto Cultivo Maíz'!N67+'Presupuesto Cultivo Soya'!N68 -> 21719.26082 | G72: 0.02658500935
C73: Cinta | D73: Rollo | E73: ='Presupuesto Cultivo Maíz'!L68+'Presupuesto Cultivo Soya'!L69 -> 0 | F73: ='Presupuesto Cultivo Maíz'!N68+'Presupuesto Cultivo Soya'!N69 -> 0 | G73: 0
C74: MO Regador | D74: Jornal | E74: ='Presupuesto Cultivo Maíz'!L69+'Presupuesto Cultivo Soya'!L70 -> 3784.196191 | F74: ='Presupuesto Cultivo Maíz'!N69+'Presupuesto Cultivo Soya'!N70 -> 61484.18519 | G74: 0.07525843774
C75: Bomba de riego | D75: Hr | E75: ='Presupuesto Cultivo Maíz'!L70+'Presupuesto Cultivo Soya'!L71 -> 5297.874668 | F75: ='Presupuesto Cultivo Maíz'!N70+'Presupuesto Cultivo Soya'!N71 -> 108329.0325 | G75: 0.1325978986
C76: Sub Total (Riego) | F76: =SUM(F71:F75) -> 218681.5546 | G76: 0.2676726073
C79: Cosecha
C80: MO Supervisor de Cosecha | D80: Jornal/Día | E80: ='Presupuesto Cultivo Maíz'!L75+'Presupuesto Cultivo Soya'!L76 -> 334.1914015 | F80: ='Presupuesto Cultivo Maíz'!N75+'Presupuesto Cultivo Soya'!N76 -> 6515.778247 | G80: =F80/$F$112 -> 0.007975502806
C81: MO Corteros | D81: Jornal/Día | E81: ='Presupuesto Cultivo Maíz'!L76+'Presupuesto Cultivo Soya'!L77 -> 4654.085743 | F81: ='Presupuesto Cultivo Maíz'!N76+'Presupuesto Cultivo Soya'!N77 -> 75617.82087 | G81: 0.09255842045
C82: Sacos | D82: Unidad | E82: ='Presupuesto Cultivo Maíz'!L77+'Presupuesto Cultivo Soya'!L78 -> 30674.40898 | F82: ='Presupuesto Cultivo Maíz'!N77+'Presupuesto Cultivo Soya'!N78 -> 8781.069693 | G82: 0.01074828567
C83: Transporte | D83: Unidad | E83: ='Presupuesto Cultivo Maíz'!L78+'Presupuesto Cultivo Soya'!L79 -> 95.85752807 | F83: ='Presupuesto Cultivo Maíz'!N78+'Presupuesto Cultivo Soya'!N79 -> 7056.216717 | G83: 0.008637015273
C84: Sub Total (Cosecha) | F84: =SUM(F80:F83) -> 97970.88552 | G84: =F84/$F$112 -> 0.1199192242
C87: Mantenimiento
C88: Raleo | D88: Jornal/Día | E88: ='Presupuesto Cultivo Maíz'!L83+'Presupuesto Cultivo Soya'!L84 -> 0 | F88: ='Presupuesto Cultivo Maíz'!N83+'Presupuesto Cultivo Soya'!N84 -> 0 | G88: =F88/$F$112 -> 0
C89: Limpieza manual de malezas nocivas | D89: Jornal/Día | E89: ='Presupuesto Cultivo Maíz'!L84+'Presupuesto Cultivo Soya'!L85 -> 0 | F89: ='Presupuesto Cultivo Maíz'!N84+'Presupuesto Cultivo Soya'!N85 -> 0 | G89: 0
C90: Descañuele | D90: Jornal/Día | E90: ='Presupuesto Cultivo Maíz'!L85+'Presupuesto Cultivo Soya'!L86 -> 1670.957008 | F90: ='Presupuesto Cultivo Maíz'!N85+'Presupuesto Cultivo Soya'!N86 -> 27149.07603 | G90: 0.03323126169
C91: Despanojado | D91: Jornal/Día | E91: ='Presupuesto Cultivo Maíz'!L86+'Presupuesto Cultivo Soya'!L87 -> 0 | F91: ='Presupuesto Cultivo Maíz'!N86+'Presupuesto Cultivo Soya'!N87 -> 0 | G91: 0
C92: Eliminación de machos | D92: Jornal/Día | E92: ='Presupuesto Cultivo Maíz'!L87+'Presupuesto Cultivo Soya'!L88 -> 0 | F92: ='Presupuesto Cultivo Maíz'!N87+'Presupuesto Cultivo Soya'!N88 -> 0 | G92: =F92/$F$112 -> 0
C93: Eliminación de plantas enfermas | D93: Jornal/Día | E93: ='Presupuesto Cultivo Maíz'!L88+'Presupuesto Cultivo Soya'!L89 -> 1154.961136 | F93: ='Presupuesto Cultivo Maíz'!N88+'Presupuesto Cultivo Soya'!N89 -> 18765.3707 | G93: =F93/$F$112 -> 0.02296936161
C94: Carga y descarga de cosecha | D94: Jornal/Día | E94: ='Presupuesto Cultivo Maíz'!L89+'Presupuesto Cultivo Soya'!L90 -> 334.1914015 | F94: ='Presupuesto Cultivo Maíz'!N89+'Presupuesto Cultivo Soya'!N90 -> 5429.815206 | G94: 0.006646252338
C95: Sub Total (Mantenimiento) | F95: =SUM(F88:F94) -> 51344.26194 | G95: =F95/$F$112 -> 0.06284687564
C98: Destrucción
C99: Rastra pesada | D99: Hr | E99: ='Presupuesto Cultivo Maíz'!L94+'Presupuesto Cultivo Soya'!L95 -> 477.4162879 | F99: ='Presupuesto Cultivo Maíz'!N94+'Presupuesto Cultivo Soya'!N95 -> 14321.68815 | G99: =F99/$F$112 -> 0.01753016442
C100: Sub Total (Destrucción) | F100: =SUM(F99) -> 14321.68815 | G100: =F100/$F$112 -> 0.01753016442
C102: Total Costos de Producción en Campo | F102: =F23+F34+F45+F57+F67+F76+F84+F95+F100 -> 753501.7495 | G102: =F102/$F$112 -> 0.9223081403
C103: Costos de Ventas Totales ($) | F103: ='Presupuesto Cultivo Maíz'!N98+'Presupuesto Cultivo Soya'!N99 -> 44069.4964 | G103: =F103/$F$112 -> 0.05394235023
C104: Costos Variables Totales ($) | F104: =F102+F103 -> 797571.2459 | G104: =F104/$F$112 -> 0.9762504905
C107: Rendimiento promedio en QQ Oro/Ha | F107: ='Rendimientos & Supuestos '!H8 -> 48.45
C108: Producción Total en QQ Oro | F108: ='Presupuesto Cultivo Maíz'!N103+'Presupuesto Cultivo Soya'!N104 -> 10000
C109: Gastos Operativos por QQ Oro | F109: ='Gastos Operativos'!D21 -> 1.940273121
C110: Costos Fijos Totales ($) | F110: =F108*F109 -> 19402.73121 | G110: =F110/$F$112 -> 0.02374950947
C112: Costos Totales ($) | F112: =F104+F110 -> 816973.9771 | G112: =F112/$F$112 -> 1
C115: Ingresos Totales ($) | F115: ='Presupuesto Cultivo Maíz'!N112+'Presupuesto Cultivo Soya'!N113 -> 1091267
C117: Utilidad Operativa ($) | F117: =F115-F112 -> 274293.0229

Sheet PE$ - Múltiples Productos (hidden)
B3: ANÁLISIS DEL PUNTO DE EQUILIBRIO MONETARIO- Múltiples Productos
B6: Columnas
B7: 1 | C7: 2 | D7: 3 | E7: 4 | F7: 5 | G7: 6 | H7: 7 | I7: 8
B8: Producto ( i ) | C8: Precio de Venta (P) | D8: Costo Variable Unitario (CVU) | E8: CVU/P | F8: 1 - (CVU/P) | G8: Pronóstico de Ventas Anuales ($) | H8: % de Ventas | I8: Contribución Ponderada (Col. 5 * Col. 7)
B9: Maíz | C9: ='Presupuesto Cultivo Maíz'!D129 -> 75.12 | D9: ='Presupuesto Cultivo Maíz'!D128 -> 51.49102297 | E9: =D9/C9 -> 0.6854502526 | F9: =1-E9 -> 0.3145497474 | G9: ='Presupuesto Cultivo Maíz'!N112 -> 375600 | H9: =G9/$G$11 -> 0.344187078 | I9: =F9*H9 -> 0.1082639584
B10: Soya | C10: ='Presupuesto Cultivo Soya'!D129 -> 143.1334 | D10: ='Presupuesto Cultivo Soya'!D128 -> 108.0232262 | E10: =D10/C10 -> 0.7547031385 | F10: =1-E10 -> 0.2452968615 | G10: ='Presupuesto Cultivo Soya'!N113 -> 715667 | H10: =G10/$G$11 -> 0.655812922 | I10: =F10*H10 -> 0.1608688515
B11: Total | G11: =SUM(G9:G10) -> 1091267 | H11: =SUM(H9:H10) -> 1 | I11: =SUM(I9:I10) -> 0.2691328099
B14: Costos Fijos Totales: | D14: ='Presupuesto General'!F110 -> 19402.73121
D18: = | E18: =D14/I11 -> 72093.51849
B23: Ventas Diarias para lograr el Punto de Equilibrio
B25: Dado que las ventanas de mercado de ventas de semillas se extienden aproximadamente a lo largo de 3 semanas cada una, suponiendo que se trabajan 6 días a la semana, entonces el total de días serían 6X6= 36 días, por lo que las ventas diarias serían igual a:
B27: Ventas diarias= | C27: PE$/36 días= | D27: =E18/36 -> 2002.597736 | E27: La Administración de la Finca El Yeguare ya sabe que debe generar ventas promedio de $2,742 al día durante las ventanas de mercado de primera y postrera, para poder lograr el equilibrio, es decir, cubrir los costos totales con los ingresos totales.
B31: ANÁLISIS DEL PUNTO DE EQUILIBRIO FÍSICO- Múltiples Productos
B33: El gerente de la Finca El Yaguare quiere conocer el Punto de Equilibrio Físico para el número de quintales oro a vender al día para cada producto.
B35: PEx Diario= | C35: % de ventas * Ventas diarias / Precio de venta unitario de cada producto
B36: Punto de Equilibrio Físico
B37: Producto | C37: % de Ventas | D37: Ventas diarias | E37: Precio de venta (P) | F37: PEx Diario | G37: PEx Anual | H37: PE$
B38: Maíz | C38: =H9 -> 0.344187078 | D38: =$D$27 -> 2002.597736 | E38: =C9 -> 75.12 | F38: =C38*D38/E38 -> 9.175562606 | G38: =F38*36 -> 330.3202538 | H38: =G38*E38 -> 24813.65747
B39: Soya | C39: =H10 -> 0.655812922 | D39: =$D$27 -> 2002.597736 | E39: =C10 -> 143.1334 | F39: =C39*D39/E39 -> 9.175562606 | G39: =F39*36 -> 330.3202538 | H39: =G39*E39 -> 47279.86102
B40: Total | H40: =SUM(H38:H39) -> 72093.51849

Sheet Estado de Resultados (hidden)
B2: ESTADO DE RESULTADOS FINCA EL YEGUARE
C4: Maíz | E4: Soya | H4: Total | I4: Vínculo
B5: Ventas | C5: =C6*C7 -> 375600 | E5: =E6*E7 -> 715667 | H5: =SUM(C5,E5) -> 1091267 | K5: Financiamiento
B6: Precio (L) | C6: ='Presupuesto Cultivo Maíz'!N111 -> 75.12 | E6: ='Presupuesto Cultivo Soya'!N112 -> 143.1334 | K6: Cálculo del Financiamiento
B7: Cantidad (QQ) | C7: ='Presupuesto Cultivo Maíz'!N103 -> 5000 | E7: ='Presupuesto Cultivo Soya'!N104 -> 5000 | K7: Financiamiento bancario (valor) | L7: 100000
B8: (-) Devoluciones en ventas | C8: 0 | E8: 0 | H8: =SUM(C8,E8) -> 0 | K8: Financiamiento bancario (tasa) | L8: ='[1]Rendimientos & Supuestos '!D9 -> 0.2
B9: Ventas Netas | C9: =C5-C8 -> 375600 | E9: =E5-E8 -> 715667 | H9: =H5-H8 -> 1091267 | I9: FC | K9: Financiamiento bancario (periodos) | L9: ='[1]Rendimientos & Supuestos '!D10 -> 5 | M9: años
B10: (-) Costo de ventas | C10: =SUM(C11:C12) -> 257455.1149 | E10: =SUM(E11:E12) -> 540116.131 | H10: =SUM(H11:H12) -> 797571.2459 | K10: Modalidad | L10: Pagos exactos
B11: (-) Costos producción en campo | C11: ='Presupuesto Cultivo Maíz'!N97 -> 237164.6262 | E11: ='Presupuesto Cultivo Soya'!N98 -> 516337.1233 | H11: =SUM(C11,E11) -> 753501.7495 | I11: FC
B12: (-) Costos de empaque y transporte | C12: ='Presupuesto Cultivo Maíz'!N98 -> 20290.4887 | E12: ='Presupuesto Cultivo Soya'!N99 -> 23779.0077 | H12: =SUM(C12,E12) -> 44069.4964 | I12: FC
B13: Utilidad Bruta | C13: =C5-C10 -> 118144.8851 | E13: =E5-E10 -> 175550.869 | H13: =H5-H10 -> 293695.7541 | K13: Tabla de Amortización del Préstamo
B14: (-) Gastos Operativos | C14: =SUM(C15:C18) -> 9701.365604 | E14: =SUM(E15:E18) -> 9701.365604 | H14: =SUM(H15:H18) -> 19402.73121
B15: (-) Gastos de Administración | C15: ='Presupuesto Cultivo Maíz'!$N$105*0.7 -> 6790.955923 | E15: ='Presupuesto Cultivo Soya'!N106*0.7 -> 6790.955923 | H15: =C15+E15 -> 13581.91185 | I15: BG | K15: Concepto | L15: Año 0 | M15: Año 1 | N15: Año 2 | O15: Año 3 | P15: Año 4 | Q15: Año 5
B16: (-) Gastos Generales | C16: ='Presupuesto Cultivo Maíz'!$N$105*0.1 -> 970.1365604 | E16: ='Presupuesto Cultivo Soya'!N106*0.1 -> 970.1365604 | H16: =C16+E16 -> 1940.273121 | I16: BG | K16: Cuota anual (anualidad) | M16: =PMT($L$8,$L$9,-$L$7) -> 33437.97033 | N16: =PMT($L$8,$L$9,-$L$7) -> 33437.97033 | O16: =PMT($L$8,$L$9,-$L$7) -> 33437.97033 | P16: =PMT($L$8,$L$9,-$L$7) -> 33437.97033 | Q16: =PMT($L$8,$L$9,-$L$7) -> 33437.97033
B17: (-) Gastos de ventas | C17: ='Presupuesto Cultivo Maíz'!$N$105*0.05 -> 485.0682802 | E17: ='Presupuesto Cultivo Soya'!N106*0.05 -> 485.0682802 | H17: 970.1365604 | I17: BG | K17: Intereses | M17: =L19*$L$8 -> 20000 | N17: =M19*$L$8 -> 17312.40593 | O17: =N19*$L$8 -> 14087.29306 | P17: =O19*$L$8 -> 10217.1576 | Q17: =P19*$L$8 -> 5572.995055
B18: (-) Gastos de depreciación | C18: ='Presupuesto Cultivo Maíz'!$N$105*0.15 -> 1455.204841 | E18: ='Presupuesto Cultivo Soya'!N106*0.15 -> 1455.204841 | H18: 2910.409681 | I18: BG | K18: Abono a capital (amortización) | M18: =M16-M17 -> 13437.97033 | N18: =N16-N17 -> 16125.56439 | O18: =O16-O17 -> 19350.67727 | P18: =P16-P17 -> 23220.81273 | Q18: =Q16-Q17 -> 27864.97527
B19: (+) Otros ingresos | C19: 0 | E19: 0 | H19: ='Flujo de Caja'!C30 -> 100000 | I19: FC | K19: Saldo crédito | L19: =L7 -> 100000 | M19: =L19-M18 -> 86562.02967 | N19: =M19-N18 -> 70436.46528 | O19: =N19-O18 -> 51085.788 | P19: =O19-P18 -> 27864.97527 | Q19: =P19-Q18 -> -7.639755495e-11
B20: (-) Otros egresos | C20: 0 | E20: 0 | H20: ='Flujo de Caja'!C26+'Flujo de Caja'!C29 -> -85000 | I20: FC
B21: (-) Pérdidas | C21: 0 | E21: 0 | H21: =C21+E21 -> 0
B22: Utilidad Operativa | C22: =C13-C14+C19-C20-C21 -> 108443.5195 | E22: =E13-E14+E19-E20-E21 -> 165849.5034 | H22: =H13-H14+H19+H20+H21 -> 289293.0229 | K22: Cultivo | L22: Maíz Tuxpeño | M22: Soya | N22: Total
B23: (-) Gastos financieros (Intereses) | C23: =L24*$M$17 -> 6540.146638 | E23: =M24*$M$17 -> 13459.85336 | H23: =SUM(C23,E23) -> 20000 | I23: FC y ER | K23: Costos Totales | L23: ='Presupuesto Cultivo Maíz'!N107 -> 267156.4805 | M23: ='Presupuesto Cultivo Soya'!N108 -> 549817.4966 | N23: =SUM(L23:M23) -> 816973.9771
B24: Utilidad Antes de Impuestos (UAI) | C24: =C22-C23 -> 101903.3729 | E24: =E22-E23 -> 152389.65 | H24: =H22-H23 -> 269293.0229 | K24: Ponderación | L24: =L23/$N$23 -> 0.3270073319 | M24: =M23/$N$23 -> 0.6729926681 | N24: =N23/$N$23 -> 1
B25: (-) Impuestos (Impuestos Sobre la Renta y otros que apliquen) | C25: =C24*0.25 -> 25475.84322 | E25: =E24*0.25 -> 38097.4125 | H25: =SUM(C25,E25) -> 63573.25572 | I25: BG y FC
B26: Utilidad Neta | C26: =C24-C25 -> 76427.52966 | E26: =E24-E25 -> 114292.2375 | H26: =H24-H25 -> 205719.7672 | I26: BG
B27: (-) Pago de dividendos (25%) | C27: =C26*0.25 -> 19106.88242 | E27: =E26*0.25 -> 28573.05938 | H27: =C27+E27 -> 47679.94179
B28: Utilidades Retenidas (Utilidades del ejercicio) | C28: =C26-C27 -> 57320.64725 | E28: =E26-E27 -> 85719.17813 | H28: =H26-H27 -> 158039.8254 | I28: BG
B30: Rentabilidad | C30: =C26/(C8+C10+C14+C20+C21+C23+C25) -> 0.2554631099 | E30: =E26/(E8+E10+E14+E20+E21+E23+E25) -> 0.1900516028 | H30: =H26/(H8+H10+H14+H20+H21+H23+H25) -> 0.2522475203

Sheet BG (hidden)
B1: FINCA EL YEGUARE
B2: Balance General - Estado de Situación Financiera
B3: 31 de diciembre del 2022
B5: ACTIVO | D5: PASIVO Y CAPITAL DE LOS ACCIONISTAS
B6: Activo Circulante | D6: Pasivo Circulante
B7: Efectivo | C7: 2000 | D7: Cuentas por pagar | E7: =C11 -> 1000
B8: Cuentas bancarias | C8: =112542.421179125+'Flujo de Caja'!C30+'Flujo de Caja'!C37+'Flujo de Caja'!C38+'Flujo de Caja'!C26+'Flujo de Caja'!C29 -> 327542.4212 | D8: Facturas por pagar/ deuda corto plazo | E8: =-'Flujo de Caja'!C34-'Flujo de Caja'!C35 -> 33437.97033
B9: Cuentas por cobrar | C9: ='Flujo de Caja'!C11 -> 15000 | D9: Servicios públicos por pagar | E9: 0
B10: Inventarios | D10: Salarios | E10: 0
B11: Materia prima (insumos) | C11: ='Flujo de Caja'!C20 -> 1000 | D11: Total Pasivos Circulantes | E11: =SUM(E7:E10) -> 34437.97033
B12: Producto en proceso | C12: 0
B13: Producto terminado | C13: 0
B14: Otros Activos Circulantes | C14: 0 | D14: Deudas de Largo Plazo
B15: Total Activo Circulante | C15: =SUM(C7:C14) -> 345542.4212 | D15: Préstamo por pagar (deuda largo plazo) | E15: ='Estado de Resultados'!M19 -> 86562.02967
D16: Oblig. Por arrendamiento de capital | E16: 0
D17: Impuestos por pagar | E17: 0
B18: Activo Fijo | D18: Total Pasivos de Largo Plazo | E18: =SUM(E15:E17) -> 86562.02967
B19: Maquinaria y equipo en campo | C19: =150000-'Flujo de Caja'!C29-'Flujo de Caja'!C30 -> 120000
B20: Maquinaria y equipo en planta | C20: =300000-'Flujo de Caja'!C26 -> 315000
B21: Terrenos | C21: 800000 | D21: TOTAL DE PASIVOS | E21: =E11+E18 -> 121000
B22: Edificios | C22: 500000
B23: Equipo de transporte | C23: 50000
B24: Menos la depreciación acumulada | C24: ='Estado de Resultados'!H18 -> 2910.409681
B25: Propiedad, planta y equipo neto | C25: =SUM(C19:C24) -> 1787910.41 | D25: CAPITAL DE LOS ACCIONISTAS
B26: Otros Activos Fijos | D26: Capital social | E26: =C33-E21-E27-E28-E29 -> 1799413.005
B27: Marca | C27: 50000 | D27: Aportaciones de capital | E27: ='Flujo de Caja'!C38 -> 100000
B28: Patentes de productos | C28: 25000 | D28: Utilidades retenidas acumuladas | E28: 30000
B29: Total de Activos al Largo Plazo | C29: =C25+C27+C28 -> 1862910.41 | D29: Utilidad del período o del ejercicio | E29: ='Estado de Resultados'!H28 -> 158039.8254
D30: Total Capital o Patrimonio Neto | E30: =SUM(E26:E29) -> 2087452.831
B33: TOTAL DE ACTIVOS | C33: =SUM(C15,C29) -> 2208452.831 | D33: TOTAL PASIVO Y CAPITAL | E33: =E21+E30 -> 2208452.831

Sheet Flujo de Caja (hidden)
B2: FINCA EL YEGUARE S.A
B3: ESTADO DE FLUJO DE CAJA O DE EFECTIVO
B4: AÑO 2022
B5: MÉTODO DIRECTO
B7: ACTIVIDADES OPERACIONALES | D7: Vínculo
B8: Recaudo de cuentas por cobrar a clientes | C8: =C9+C10-C11 -> 1071267
B9: Ventas netas | C9: ='Estado de Resultados'!H9-BG!C9 -> 1076267 | D9: ER
B10: Saldo final cuentas por cobrar año 2021 | C10: 10000
B11: Saldo final cuentas por cobrar | C11: 15000
B12: (-) Pagos por salarios de mano de obra directa | C12: =-(SUM('Presupuesto General'!F32:F33)+SUM('Presupuesto General'!F43:F44)+SUM('Presupuesto General'!F56)+SUM('Presupuesto General'!F65:F66)+SUM('Presupuesto General'!F71:F72)+'Presupuesto General'!F74+'Presupuesto General'!F80+'Presupuesto General'!F81+SUM('Presupuesto General'!F95)) -> -279824.1378 | D12: ER
B13: (-) Pagos gastos de administración | C13: =-'Estado de Resultados'!H15 -> -13581.91185 | D13: ER
B14: (-) Pagos gastos generales | C14: =-'Estado de Resultados'!H16 -> -1940.273121 | D14: ER
B15: (-) Pagos gastos de ventas + transporte | C15: =-'Estado de Resultados'!H17-('Presupuesto General'!F103*'Costos de Ventas'!G14)-'Presupuesto General'!F83 -> -30121.0746 | D15: ER
B16: (-) Pagos gastos de impuestos | C16: =-'Estado de Resultados'!H25 -> -63573.25572 | D16: ER
B17: (-) Pagos a proveedores | C17: =-(C18+C19-C20)-C21 -> -490596.17
B18: Compras | C18: =SUM('Presupuesto General'!F27:F31)+SUM('Presupuesto General'!F38:F42)+SUM('Presupuesto General'!F49:F55)+SUM('Presupuesto General'!F61:F64)+SUM('Presupuesto General'!F82)+('Presupuesto General'!F103*(1-'Costos de Ventas'!G14)) -> 161171.5733 | D18: BG y ER
B19: Saldo final cuentas por pagar 2021 | C19: 3000
B20: Saldo final cuentas por pagar | C20: 1000 | D20: BG
B21: Proveedores de servicios de maquinaria | C21: ='Presupuesto General'!F23+'Presupuesto General'!F75+'Presupuesto General'!F99 -> 327424.5967 | D21: BG y ER
B22: (-) Otras cuentas por pagar | C22: 0
B23: Flujo de efectivo operativo | C23: =C8+C12+C14+C15+C13+C16+C17+C22 -> 191630.1769
B25: ACTIVIDADES DE INVERSIÓN | D25: Vínculo
B26: Compra propiedad, planta y equipo | C26: =-C27-C28 -> -15000 | D26: BG y ER
B27: Secadora | C27: 5000
B28: Desgranadora | C28: 10000
B29: Compra de tractor | C29: -70000 | D29: BG y ER
B30: Venta de tractores viejos | C30: 100000 | D30: BG y ER
B31: Flujo de efectivo por actividades de inversión | C31: =C26+C29+C30 -> 15000
B33: ACTIVIDADES DE FINANCIAMIENTO | D33: Vínculo
B34: Pago gastos financieros (intereses) | C34: =-'Estado de Resultados'!M17 -> -20000 | D34: ER
B35: Abono a deuda de largo plazo | C35: =-'Estado de Resultados'!M18 -> -13437.97033 | D35: BG
B36: Pago de dividendos | C36: =-'Estado de Resultados'!H27 -> -47679.94179 | D36: ER
B37: Aumento deuda largo plazo (préstamo) | C37: ='Estado de Resultados'!L7 -> 100000 | D37: BG
B38: Aportación de capital | C38: 100000 | D38: BG
B39: Flujo de efectivo actividades de financiamiento | C39: =SUM(C34:C38) -> 118882.0879
B41: AUMENTO EN EL EFECTIVO | C41: =C23+C31+C39 -> 325512.2647 | D41: Vínculo
B42: EFECTIVO (Caja, bancos, etc.) año 2021 | C42: 80000 | D42: BG
B43: FLUJO DE EFECTIVO NETO (Caja, bancos, etc.) año 2022 | C43: =C41+C42 -> 405512.2647

Sheet Inversiones
D2: Inversiones
D6: Descripción del activo | E6: Unidad | F6: Cantidad | G6: Costo | I6: Vida útil | J6: Depreciación /Amortización anual
G7: Unitario | H7: Total
D8: Producción de maíz
D9: Sensores de humedad | E9: Unidad | F9: =F10*2 -> 208 | G9: 150 | H9: =F9*G9 -> 31200 | I9: 5 | J9: =H9/I9 -> 6240
D10: Alquiler de terrenos (contrato a largo plazo) | F10: =ROUNDUP('Rendimientos & Supuestos '!AA8,0) -> 104 | G10: =5000/24.45 -> 204.4989775 | H10: =F10*G10 -> 21267.89366 | I10: 5 | J10: =H10/I10 -> 4253.578732
D11: Cinta de riego | E11: Rollo | F11: ='Rendimientos & Supuestos '!AA8*E15 -> 229.3314987 | G11: =3500/24.45 -> 143.1492843 | H11: =F11*G11 -> 32828.63989 | I11: 3 | J11: =H11/I11 -> 10942.87996
D12: 1 rollo (metros lineales) | E12: 3000
D13: Distanciamiento entre cinta (metros) | E13: 1.5
D14: Metros lineales en 1 hectárea a un distanciamiento de 1.5 metros entre cinta | E14: =10000/E13 -> 6666.666667
D15: Rollos de cinta por hectárea | E15: =E14/E12 -> 2.222222222
D16: Sistemas de riego e instalación | E16: Unidad | F16: 5 | G16: =250000/24.45 -> 10224.94888 | H16: =F16*G16 -> 51124.74438 | I16: 10 | J16: =H16/I16 -> 5112.474438
D17: Secadoras | E17: Unidad | F17: 4 | G17: =150000/24.45 -> 6134.969325 | H17: =F17*G17 -> 24539.8773 | I17: 10 | J17: =H17/I17 -> 2453.98773
D18: Desgranadoras | E18: Unidad | F18: 4 | G18: =200000/24.45 -> 8179.9591 | H18: =F18*G18 -> 32719.8364 | I18: 10 | J18: =H18/I18 -> 3271.98364
D19: Total | H19: =SUM(H9:H18) -> 193680.9916
D23: Producción de Soya
D24: Sensores de humedad | E24: Unidad | F24: =F25*2 -> 462 | G24: 150 | H24: =F24*G24 -> 69300 | I24: 5 | J24: =H24/I24 -> 13860
D25: Alquiler de terrenos | F25: =ROUNDUP('Rendimientos & Supuestos '!AA9,0) -> 231 | G25: =5000/24.45 -> 204.4989775 | H25: =F25*G25 -> 47239.2638 | I25: 5 | J25: =H25/I25 -> 9447.852761
D26: Cinta de riego | E26: Rollo | F26: ='Rendimientos & Supuestos '!AA9*E30 -> 513.3160602 | G26: =3500/24.45 -> 143.1492843 | H26: =F26*G26 -> 73480.82662 | I26: 3 | J26: =H26/I26 -> 24493.60887
D27: 1 rollo (metros lineales) | E27: 3000
D28: Distanciamiento entre cinta (metros) | E28: 1.5
D29: Metros lineales en 1 hectárea a un distanciamiento de 1.5 metros entre cinta | E29: =10000/E28 -> 6666.666667
D30: Rollos de cinta por hectárea | E30: =E29/E27 -> 2.222222222
D31: Sistemas de riego e instalación | E31: Unidad | F31: 5 | G31: =250000/24.45 -> 10224.94888 | H31: =F31*G31 -> 51124.74438 | I31: 10 | J31: =H31/I31 -> 5112.474438
D32: Secadoras | E32: Unidad | F32: 4 | G32: =150000/24.45 -> 6134.969325 | H32: =F32*G32 -> 24539.8773 | I32: 10 | J32: =H32/I32 -> 2453.98773
D35: Total | H35: =SUM(H24:H33) -> 265684.7121

Sheet Presupuesto de Capital Soya
A1: Variables
A2: Horizonte de Evaluación (años) | B2: ='Rendimientos & Supuestos '!E18 -> 5
B3: AÑO 1 | C3: AÑO 2 | D3: AÑO 3 | E3: AÑO 4 | F3: AÑO 5
A4: Venta de semillas | B4: ='Presupuesto Cultivo Soya'!N113 -> 715667 | C4: =B4+(B4*$B$10) -> 722823.67 | D4: =C4+(C4*$B$10) -> 730051.9067 | E4: =D4+(D4*$B$10) -> 737352.4258 | F4: =E4+(E4*$B$10) -> 744725.95
B6: AÑO 0 | C6: AÑO 1 | D6: AÑO 2 | E6: AÑO 3 | F6: AÑO 4 | G6: AÑO 5
A7: Capital de trabajo | B7: =(('Presupuesto Cultivo Soya'!N108)/12)*'Rendimientos & Supuestos '!E34 -> 137454.3742 | C7: =B7+(B7*$B$10) -> 138828.9179 | D7: =C7+(C7*$B$10) -> 140217.2071 | E7: =D7+(D7*$B$10) -> 141619.3791 | F7: =E7+(E7*$B$10) -> 143035.5729 | G7: =F7+(F7*$B$10) -> 144465.9287
A8: Costo variables | C8: ='Presupuesto Cultivo Soya'!N100 -> 540116.131 | D8: =C8+(C8*$B$10) -> 545517.2923 | E8: 550972.4653 | F8: 556482.1899 | G8: 562047.0118
A9: Gastos de operación | C9: ='Presupuesto Cultivo Soya'!N106 -> 9701.365604 | D9: 9798.37926 | E9: 9896.363053 | F9: 9995.326684 | G9: 10095.27995
A10: Inflación | B10: ='Rendimientos & Supuestos '!E25 -> 0.01
A11: Inversión en activos fijos | B11: =Inversiones!H35 -> 265684.7121
A12: Inversión en preoperativos | B12: 0
A13: Vida útil de equipos (años) | B13: 2 | C13: 5 | D13: 10
A14: Tasa de corte | B14: ='Rendimientos & Supuestos '!E38 -> 0.15
A15: Tasa ISR | B15: ='Rendimientos & Supuestos '!E39 -> 0.25
A16: Financiamiento bancario (valor) | B16: ='Rendimientos & Supuestos '!E37 -> 0
A17: Financiamiento bancario (tasa) | B17: ='Rendimientos & Supuestos '!E35 -> 0
A18: Financiamiento bancario (años) | B18: ='Rendimientos & Supuestos '!E33 -> 5
A20: 1. Ingresos del proyecto
A21: Calendario de ingresos
A22: Concepto | B22: Año 0 | C22: Año 1 | D22: Año 2 | E22: Año 3 | F22: Año 4 | G22: Año 5
A23: Cantidad (QQ) | C23: ='Presupuesto Cultivo Soya'!N104 -> 5000 | D23: =C23 -> 5000 | E23: =D23 -> 5000 | F23: =E23 -> 5000 | G23: =F23 -> 5000
A24: Precio de venta ($) | C24: ='Presupuesto Cultivo Soya'!N112 -> 143.1334 | D24: =C24+(C24*$B$10) -> 144.564734 | E24: =D24+(D24*$B$10) -> 146.0103813 | F24: 147.4704852 | G24: 148.94519
A25: Ingresos por venta semilla | C25: =C23*C24 -> 715667 | D25: =C25+(C25*$B$10) -> 722823.67 | E25: =D25+(D25*$B$10) -> 730051.9067 | F25: 737352.4258 | G25: =F25+(F25*$B$10) -> 744725.95
A26: Ingresos Brutos | C26: =C25 -> 715667 | D26: =D25 -> 722823.67 | E26: =E25 -> 730051.9067 | F26: =F25 -> 737352.4258 | G26: =G25 -> 744725.95
A28: 2. Costos variables
A29: Calendario de costos variables
A30: Concepto | B30: Año 0 | C30: Año 1 | D30: Año 2 | E30: Año 3 | F30: Año 4 | G30: Año 5
A31: Costo variable total | C31: =C8 -> 540116.131 | D31: =D8 -> 545517.2923 | E31: =E8 -> 550972.4653 | F31: =F8 -> 556482.1899 | G31: =G8 -> 562047.0118
A32: Total de costos variables | C32: =SUM(C31:C31) -> 540116.131 | D32: =SUM(D31:D31) -> 545517.2923 | E32: =SUM(E31:E31) -> 550972.4653 | F32: =SUM(F31:F31) -> 556482.1899 | G32: =SUM(G31:G31) -> 562047.0118
A34: 3. Costos fijos
A35: Calendario de los costos fijos
A36: Concepto | B36: Año 0 | C36: Año 1 | D36: Año 2 | E36: Año 3 | F36: Año 4 | G36: Año 5
A37: Gastos de operación | C37: =C9 -> 9701.365604 | D37: =D9 -> 9798.37926 | E37: =E9 -> 9896.363053 | F37: =F9 -> 9995.326684 | G37: =G9 -> 10095.27995
A38: Total de costos fijos | C38: =SUM(C37:C37) -> 9701.365604 | D38: =SUM(D37:D37) -> 9798.37926 | E38: =SUM(E37:E37) -> 9896.363053 | F38: =SUM(F37:F37) -> 9995.326684 | G38: =SUM(G37:G37) -> 10095.27995
A40: 4. Capital de trabajo
A41: Capital de trabajo
A42: Necesidad de Efectivo
A43: Concepto | B43: Cobertura | C43: Año 1 | D43: Año 2 | E43: Año 3 | F43: Año 4 | G43: Año 5
A44: Capital de trabajo | C44: =B7 -> 137454.3742 | D44: =C7 -> 138828.9179 | E44: =D7 -> 140217.2071 | F44: =E7 -> 141619.3791 | G44: =F7 -> 143035.5729
A45: Efectivo requerido en caja | C45: =SUM(C44:C44) -> 137454.3742 | D45: =SUM(D44:D44) -> 138828.9179 | E45: =SUM(E44:E44) -> 140217.2071 | F45: =SUM(F44:F44) -> 141619.3791 | G45: =SUM(G44:G44) -> 143035.5729
A47: Cálculo del Capital de Trabajo
A48: Concepto | B48: Cobertura | C48: Año 1 | D48: Año 2 | E48: Año 3 | F48: Año 4 | G48: Año 5
A49: Activo circulante | C49: =C50 -> 137454.3742 | D49: =D50 -> 138828.9179 | E49: =E50 -> 140217.2071 | F49: =F50 -> 141619.3791 | G49: =G50 -> 143035.5729
A50: Efectivo | C50: =C45 -> 137454.3742 | D50: =D45 -> 138828.9179 | E50: =E45 -> 140217.2071 | F50: =F45 -> 141619.3791 | G50: =G45 -> 143035.5729
A51: Pasivo circulante | C51: =SUM(C52:C53) -> 0 | D51: =SUM(D52:D53) -> 0 | E51: =SUM(E52:E53) -> 0 | F51: =SUM(F52:F53) -> 0 | G51: =SUM(G52:G53) -> 0
A52: Cuentas por pagar | C52: 0 | D52: 0 | E52: 0 | F52: 0 | G52: 0
A53: Proveedores | C53: 0 | D53: 0 | E53: 0 | F53: 0 | G53: 0
A54: Capital de Trabajo (Ac - Pc) | C54: =C49-C51 -> 137454.3742 | D54: =D49-D51 -> 138828.9179 | E54: =E49-E51 -> 140217.2071 | F54: =F49-F51 -> 141619.3791 | G54: =G49-G51 -> 143035.5729
A55: Incremento Capital Trabajo | B55: =C54-B54 -> 137454.3742 | C55: =D54-C54 -> 1374.543742 | D55: =E54-D54 -> 1388.289179 | E55: =F54-E54 -> 1402.172071 | F55: 1416.193791 | G55: =H54-G54 -> -143035.5729
A57: 5. Inversiones
A58: Calendario de inversiones
A59: Concepto | B59: Año 0 | C59: Año 1 | D59: Año 2 | E59: Año 3 | F59: Año 4 | G59: Año 5
A60: Activos Fijos
A61: Inversiones 3 años | B61: =Inversiones!H26 -> 73480.82662 | E61: =FV(B10,3,,-B61) -> 75707.36915
A62: Inversiones 5 años | B62: =Inversiones!H24+Inversiones!H25 -> 116539.2638
A63: Inversiones 10 años | B63: =Inversiones!H31+Inversiones!H32 -> 75664.62168
A64: Gastos Pre-operativos
A65: Gastos puesta en marcha | B65: =B12 -> 0
A66: Capital de trabajo
A67: Capital de trabajo | B67: =B55 -> 137454.3742 | C67: 1374.543742 | D67: 1388.289179 | E67: 1402.172071 | F67: 1416.193791 | G67: -143035.5729
A68: Total Inversiones | B68: =SUM(B60:B67) -> 403139.0863 | C68: 1374.543742 | D68: 1388.289179 | E68: 77109.54122 | F68: 1416.193791 | G68: -143035.5729
A70: 6. Depreciaciones y Amortizaciones
A71: Calendario de Depreciaciones y Amortizaciones
A72: Concepto | B72: Año 0 | C72: Año 1 | D72: Año 2 | E72: Año 3 | F72: Año 4 | G72: Año 5
A73: Inversiones 3 años | C73: =$B$61/3 -> 24493.60887 | D73: =$B$61/3 -> 24493.60887 | E73: =$B$61/3 -> 24493.60887 | F73: =$E$61/3 -> 25235.78972 | G73: =$E$61/3 -> 25235.78972
A74: Inversiones 5 años | C74: =$B$62/5 -> 23307.85276 | D74: =$B$62/5 -> 23307.85276 | E74: =$B$62/5 -> 23307.85276 | F74: =$B$62/5 -> 23307.85276 | G74: =$B$62/5 -> 23307.85276
A75: Inversiones 10 años | C75: =$B$63/10 -> 7566.462168 | D75: =$B$63/10 -> 7566.462168 | E75: =$B$63/10 -> 7566.462168 | F75: =$B$63/10 -> 7566.462168 | G75: =$B$63/10 -> 7566.462168
A76: Total Depreciación/ Amortización | C76: =SUM(C73:C75) -> 55367.9238 | D76: =SUM(D73:D75) -> 55367.9238 | E76: =SUM(E73:E75) -> 55367.9238 | F76: =SUM(F73:F75) -> 56110.10464 | G76: =SUM(G73:G75) -> 56110.10464
A78: Amortización pre-operativos | C78: =$B$65/5 -> 0 | D78: =$B$65/5 -> 0 | E78: =$B$65/5 -> 0 | F78: =$B$65/5 -> 0 | G78: =$B$65/5 -> 0
A79: Total Amortización | C79: =SUM(C78) -> 0 | D79: =SUM(D78) -> 0 | E79: =SUM(E78) -> 0 | F79: =SUM(F78) -> 0 | G79: =SUM(G78) -> 0
A81: 7. Valor de desecho del proyecto
A82: Cálculo del valor de desecho del proyecto (método contable)
A83: Concepto | B83: Valor del | C83: Depreciación por periodo | H83: Valor de
B84: Activo | C84: Año 1 | D84: Año 2 | E84: Año 3 | F84: Año 4 | G84: Año 5 | H84: Desecho
A85: Inversiones 3 años | B85: =B61+E61 -> 149188.1958 | C85: =C73 -> 24493.60887 | D85: =D73 -> 24493.60887 | E85: 24493.60887 | F85: =F73 -> 25235.78972 | G85: 25235.78972 | H85: =B85-SUM(C85:G85) -> 25235.78972
A86: Inversiones 5 años | B86: =B62 -> 116539.2638 | C86: =C74 -> 23307.85276 | D86: =D74 -> 23307.85276 | E86: =E74 -> 23307.85276 | F86: =F74 -> 23307.85276 | G86: =G74 -> 23307.85276 | H86: =B86-SUM(C86:G86) -> 0
A87: Inversiones 10 años | B87: =B63 -> 75664.62168 | C87: 7566.462168 | D87: 7566.462168 | E87: 7566.462168 | F87: 7566.462168 | G87: 7566.462168 | H87: =B87-SUM(C87:G87) -> 37832.31084
A88: Amortización pre-operativos | B88: =B65 -> 0 | C88: =C78 -> 0 | D88: =D78 -> 0 | E88: =E78 -> 0 | F88: =F78 -> 0 | G88: =G78 -> 0 | H88: =B88-SUM(C88:G88) -> 0
A89: Valor de desecho total | H89: =SUM(H85:H88) -> 63068.10055
A91: 8. Financiamiento
A92: Cálculo del Financiamiento
A93: Financiamiento bancario (valor) | B93: =B16 -> 0
A94: Financiamiento bancario (tasa) | B94: =B17 -> 0
A95: Financiamiento bancario (periodos) | B95: =B18 -> 5 | C95: años
A96: Modalidad | B96: Pagos exactos
A98: Concepto | B98: Año 0 | C98: Año 1 | D98: Año 2 | E98: Año 3 | F98: Año 4 | G98: Año 5
A99: Saldo crédito | B99: =B93 -> 0 | C99: =B99-C102 -> 0 | D99: =C99-D102 -> 0 | E99: =D99-E102 -> 0 | F99: =E99-F102 -> 0 | G99: =F99-G102 -> 0
A100: Cuota anual (anualidad) | C100: =PMT($B$94,$B$95,-$B$93) -> 0 | D100: =PMT($B$94,$B$95,-$B$93) -> 0 | E100: =PMT($B$94,$B$95,-$B$93) -> 0 | F100: =PMT($B$94,$B$95,-$B$93) -> 0 | G100: =PMT($B$94,$B$95,-$B$93) -> 0
A101: Intereses | C101: =B99*$B$94 -> 0 | D101: =C99*$B$94 -> 0 | E101: =D99*$B$94 -> 0 | F101: =E99*$B$94 -> 0 | G101: =F99*$B$94 -> 0
A102: Abono a capital (amortización) | C102: =C100-C101 -> 0 | D102: =D100-D101 -> 0 | E102: =E100-E101 -> 0 | F102: =F100-F101 -> 0 | G102: =G100-G101 -> 0
A104: 9.Flujo de caja del proyecto
A105: Flujo de caja del proyecto
A106: Concepto | B106: Año 0 | C106: Año 1 | D106: Año 2 | E106: Año 3 | F106: Año 4 | G106: Año 5
A107: + Ingreso por ventas | C107: =C26 -> 715667 | D107: =D26 -> 722823.67 | E107: =E26 -> 730051.9067 | F107: =F26 -> 737352.4258 | G107: =G26 -> 744725.95
A108: - Egresos deducibles de impuestos | C108: =SUM(C109:C111) -> 549817.4966 | D108: =SUM(D109:D111) -> 555315.6716 | E108: =SUM(E109:E111) -> 560868.8283 | F108: =SUM(F109:F111) -> 566477.5166 | G108: =SUM(G109:G111) -> 572142.2918
A109: Costos variables | C109: =C32 -> 540116.131 | D109: =D32 -> 545517.2923 | E109: =E32 -> 550972.4653 | F109: =F32 -> 556482.1899 | G109: =G32 -> 562047.0118
A110: Costos Fijos | C110: =C38 -> 9701.365604 | D110: =D38 -> 9798.37926 | E110: =E38 -> 9896.363053 | F110: =F38 -> 9995.326684 | G110: =G38 -> 10095.27995
A111: Gastos financieros | C111: =C101 -> 0 | D111: =D101 -> 0 | E111: =E101 -> 0 | F111: =F101 -> 0 | G111: =G101 -> 0
A112: - Gastos no desembolsables | C112: =SUM(C113:C114) -> 55367.9238 | D112: =SUM(D113:D114) -> 55367.9238 | E112: =SUM(E113:E114) -> 55367.9238 | F112: =SUM(F113:F114) -> 56110.10464 | G112: =SUM(G113:G114) -> 56110.10464
A113: Depreciación de activos | C113: =C76 -> 55367.9238 | D113: =D76 -> 55367.9238 | E113: =E76 -> 55367.9238 | F113: =F76 -> 56110.10464 | G113: =G76 -> 56110.10464
A114: Amortización de pre-operativos | C114: =C78 -> 0 | D114: =D78 -> 0 | E114: =E78 -> 0 | F114: =F78 -> 0 | G114: =G78 -> 0
A115: = Utilidad antes de impuestos | C115: =C107-C108-C112 -> 110481.5796 | D115: =D107-D108-D112 -> 112140.0746 | E115: =E107-E108-E112 -> 113815.1546 | F115: =F107-F108-F112 -> 114764.8045 | G115: =G107-G108-G112 -> 116473.5536
A116: - Impuestos (25%) | C116: =C115*$B$15 -> 27620.39489 | D116: =D115*$B$15 -> 28035.01865 | E116: =E115*$B$15 -> 28453.78865 | F116: =F115*$B$15 -> 28691.20113 | G116: =G115*$B$15 -> 29118.38841
A117: = Utilidad después de impuestos | C117: =C115-C116 -> 82861.18468 | D117: =D115-D116 -> 84105.05596 | E117: =E115-E116 -> 85361.36594 | F117: =F115-F116 -> 86073.6034 | G117: =G115-G116 -> 87355.16522
A118: + Gastos no desembolsables | C118: =SUM(C119:C120) -> 55367.9238 | D118: =SUM(D119:D120) -> 55367.9238 | E118: =SUM(E119:E120) -> 55367.9238 | F118: =SUM(F119:F120) -> 56110.10464 | G118: =SUM(G119:G120) -> 56110.10464
A119: Depreciación de activos | C119: =C113 -> 55367.9238 | D119: =D113 -> 55367.9238 | E119: =E113 -> 55367.9238 | F119: =F113 -> 56110.10464 | G119: =G113 -> 56110.10464
A120: Amortización de pre-operativos | C120: =C114 -> 0 | D120: 0 | E120: 0 | F120: 0 | G120: 0
A121: + Ingresos no sujetos a impuestos | B121: =SUM(B122:B124) -> 0 | C121: =SUM(C122:C124) -> 0 | D121: 0 | E121: 0 | F121: 0 | G121: 206103.6735
A122: Valor de desecho | G122: =H89 -> 63068.10055
A123: Recuperación del capital de trabajo | G123: =G45 -> 143035.5729
A124: Préstamo bancario | B124: =B93 -> 0
A125: - Egresos no deducibles de impuestos | B125: =SUM(B126:B131) -> 403139.0863 | C125: 1374.543742 | D125: 1388.289179 | E125: 1402.172071 | F125: 1416.193791 | G125: 0
A126: Activos (2 años) | B126: =B61 -> 73480.82662
A127: Activos (5 años) | B127: =B62 -> 116539.2638
A128: Activos (10 años) | B128: =B63 -> 75664.62168
A129: Gastos de puesta en marcha (pre-operativos) | B129: =B65 -> 0
A130: Inversión en capital de trabajo | B130: =B67 -> 137454.3742 | C130: =C67 -> 1374.543742 | D130: =D67 -> 1388.289179 | E130: =E67 -> 1402.172071 | F130: =F67 -> 1416.193791
A131: Pago préstamo bancario | C131: =C102 -> 0 | D131: =D102 -> 0 | E131: =E102 -> 0 | F131: =F102 -> 0 | G131: =G102 -> 0
A132: = Flujo de caja neto | B132: =B117+B118+B121-B125 -> -403139.0863 | C132: =C117+C118+C121-C125 -> 136854.5647 | D132: =D117+D118+D121-D125 -> 138084.6906 | E132: =E117+E118+E121-E125 -> 139327.1177 | F132: =F117+F118+F121-F125 -> 140767.5143 | G132: =G117+G118+G121-G125 -> 349568.9434
A133: Flujo de caja acumulado | B133: =B132 -> -403139.0863 | C133: =B133+C132 -> -266284.5215 | D133: =C133+D132 -> -128199.8309 | E133: =D133+E132 -> 11127.28674 | F133: =E133+F132 -> 151894.801 | G133: =F133+G132 -> 501463.7443
A135: 10. Costo del capital
B136: Participación ($) | C136: Part. (%) | D136: Costo | E136: Co promedio
A137: Préstamo bancario | B137: =$B$68*C137 -> 0 | C137: ='Rendimientos & Supuestos '!E26 -> 0 | D137: =B17 -> 0 | E137: =C137*D137 -> 0
A138: Fondos propios | B138: =$B$68*C138 -> 403139.0863 | C138: ='Rendimientos & Supuestos '!E27 -> 1 | D138: =B14 -> 0.15 | E138: =C138*D138 -> 0.15
A139: Total | B139: =SUM(B137:B138) -> 403139.0863 | C139: =SUM(C137:C138) -> 1 | E139: =SUM(E137:E138) -> 0.15 | F139: Rendimiento mínimo aceptable (k)
F140: Tasa de corte (k)
A141: 11. Indicadores financieros | F141: Tasa promedio ponderada (k) para proyectos con financiamiento de préstamos bancarios y capital propio
A142: Valor Actual Neto (VAN) o Valor Presente Neto (VPN) = | B142: =NPV($E$139,C132:G132)-B68 -> 166168.4181 | C142: =_xlfn.FORMULATEXT(B142) -> =NPV($E$139;C132:G132)-B68 | E142: Para teclados en español la función es =VAN
A143: TIR = | B143: =IRR(B132:G132) -> 0.2894660122 | C143: =_xlfn.FORMULATEXT(B143) -> =IRR(B132:G132) | E143: Para teclados en español la función es =TIR
A144: PRI (años) = | B144: =2+(-D133/E132) -> 2.920135528 | C144: =2+(-D133/E132)
A150: Indicador Financiero | B150: Proyecto
B151: Proyecto Maíz | C151: Proyecto Soya
A152: Valor Actual Neto (VAN) o Valor Presente Neto (VPN) | B152: ='Presupuesto de Capital Maíz'!B142 -> 97828.10157 | C152: =B142 -> 166168.4181
A153: Tasa Interna de Retorno (TIR) | B153: ='Presupuesto de Capital Maíz'!B143 -> 0.2658757095 | C153: =B143 -> 0.2894660122
A154: Periodo de Recuperación Interna (PRI) | B154: ='Presupuesto de Capital Maíz'!B144 -> 3.162354324 | C154: =B144 -> 2.920135528

Sheet Presupuesto de Capital Maíz
A1: Variables
A2: Horizonte de Evaluación (años) | B2: ='Rendimientos & Supuestos '!E18 -> 5
B3: AÑO 1 | C3: AÑO 2 | D3: AÑO 3 | E3: AÑO 4 | F3: AÑO 5
A4: Venta de semillas | B4: ='Presupuesto Cultivo Maíz'!N112 -> 375600 | C4: =B4+(B4*$B$10) -> 379356 | D4: =C4+(C4*$B$10) -> 383149.56 | E4: =D4+(D4*$B$10) -> 386981.0556 | F4: =E4+(E4*$B$10) -> 390850.8662
B6: AÑO 0 | C6: AÑO 1 | D6: AÑO 2 | E6: AÑO 3 | F6: AÑO 4 | G6: AÑO 5
A7: Capital de trabajo | B7: =(('Presupuesto Cultivo Maíz'!N107)/12)*'Rendimientos & Supuestos '!E19 -> 89052.16016 | C7: =B7+(B7*$B$10) -> 89942.68176 | D7: =C7+(C7*$B$10) -> 90842.10858 | E7: =D7+(D7*$B$10) -> 91750.52966 | F7: =E7+(E7*$B$10) -> 92668.03496 | G7: =F7+(F7*$B$10) -> 93594.71531
A8: Costo variables | C8: ='Presupuesto Cultivo Maíz'!N99 -> 257455.1149 | D8: =C8+(C8*$B$10) -> 260029.666 | E8: =D8+(D8*$B$10) -> 262629.9627 | F8: 265256.2623 | G8: 267908.8249
A9: Gastos de operación | C9: ='Presupuesto Cultivo Maíz'!N105 -> 9701.365604 | D9: =C9+(C9*$B$10) -> 9798.37926 | E9: 9896.363053 | F9: 9995.326684 | G9: 10095.27995
A10: Inflación | B10: ='Rendimientos & Supuestos '!E25 -> 0.01
A11: Inversión en activos fijos | B11: =Inversiones!H19 -> 193680.9916
A12: Inversión en preoperativos | B12: 0
A13: Vida útil de equipos (años) | B13: 2 | C13: 5 | D13: 10
A14: Tasa de corte | B14: ='Rendimientos & Supuestos '!E23 -> 0.15
A15: Tasa ISR | B15: ='Rendimientos & Supuestos '!E24 -> 0.25
A16: Financiamiento bancario (valor) | B16: ='Rendimientos & Supuestos '!E22 -> 0
A17: Financiamiento bancario (tasa) | B17: ='Rendimientos & Supuestos '!E20 -> 0
A18: Financiamiento bancario (años) | B18: ='Rendimientos & Supuestos '!E18 -> 5
A20: 1. Ingresos del proyecto
A21: Calendario de ingresos
A22: Concepto | B22: Año 0 | C22: Año 1 | D22: Año 2 | E22: Año 3 | F22: Año 4 | G22: Año 5
A23: Cantidad (QQ) | C23: ='Presupuesto Cultivo Maíz'!N103 -> 5000 | D23: =C23 -> 5000 | E23: =D23 -> 5000 | F23: =E23 -> 5000 | G23: =F23 -> 5000
A24: Precio de venta ($) | C24: ='Presupuesto Cultivo Maíz'!N111 -> 75.12 | D24: =C24+(C24*$B$10) -> 75.8712 | E24: =D24+(D24*$B$10) -> 76.629912 | F24: 77.39621112 | G24: 78.17017323
A25: Ingresos por venta semilla | C25: =C23*C24 -> 375600 | D25: =C25+(C25*$B$10) -> 379356 | E25: 383149.56 | F25: 386981.0556 | G25: 390850.8662
A26: Ingresos Brutos | C26: =C25 -> 375600 | D26: =D25 -> 379356 | E26: 383149.56 | F26: 386981.0556 | G26: 390850.8662
A28: 2. Costos variables
A29: Calendario de costos variables
A30: Concepto | B30: Año 0 | C30: Año 1 | D30: Año 2 | E30: Año 3 | F30: Año 4 | G30: Año 5
A31: Costo variable total | C31: =C8 -> 257455.1149 | D31: =D8 -> 260029.666 | E31: =E8 -> 262629.9627 | F31: =F8 -> 265256.2623 | G31: =G8 -> 267908.8249
A32: Total de costos variables | C32: =SUM(C31:C31) -> 257455.1149 | D32: =SUM(D31:D31) -> 260029.666 | E32: =SUM(E31:E31) -> 262629.9627 | F32: =SUM(F31:F31) -> 265256.2623 | G32: =SUM(G31:G31) -> 267908.8249
A34: 3. Costos fijos
A35: Calendario de los costos fijos
A36: Concepto | B36: Año 0 | C36: Año 1 | D36: Año 2 | E36: Año 3 | F36: Año 4 | G36: Año 5
A37: Gastos de operación | C37: =C9 -> 9701.365604 | D37: =D9 -> 9798.37926 | E37: =E9 -> 9896.363053 | F37: =F9 -> 9995.326684 | G37: =G9 -> 10095.27995
A38: Total de costos fijos | C38: =SUM(C37:C37) -> 9701.365604 | D38: =SUM(D37:D37) -> 9798.37926 | E38: =SUM(E37:E37) -> 9896.363053 | F38: =SUM(F37:F37) -> 9995.326684 | G38: =SUM(G37:G37) -> 10095.27995
A40: 4. Capital de trabajo
A41: Capital de trabajo
A42: Necesidad de Efectivo
A43: Concepto | B43: Cobertura | C43: Año 1 | D43: Año 2 | E43: Año 3 | F43: Año 4 | G43: Año 5
A44: Capital de trabajo | C44: =B7 -> 89052.16016 | D44: =C7 -> 89942.68176 | E44: =D7 -> 90842.10858 | F44: =E7 -> 91750.52966 | G44: =F7 -> 92668.03496
A45: Efectivo requerido en caja | C45: =SUM(C44:C44) -> 89052.16016 | D45: =SUM(D44:D44) -> 89942.68176 | E45: =SUM(E44:E44) -> 90842.10858 | F45: =SUM(F44:F44) -> 91750.52966 | G45: =SUM(G44:G44) -> 92668.03496
A47: Cálculo del Capital de Trabajo
A48: Concepto | B48: Cobertura | C48: Año 1 | D48: Año 2 | E48: Año 3 | F48: Año 4 | G48: Año 5
A49: Activo circulante | C49: =C50 -> 89052.16016 | D49: =D50 -> 89942.68176 | E49: =E50 -> 90842.10858 | F49: =F50 -> 91750.52966 | G49: =G50 -> 92668.03496
A50: Efectivo | C50: =C45 -> 89052.16016 | D50: =D45 -> 89942.68176 | E50: =E45 -> 90842.10858 | F50: =F45 -> 91750.52966 | G50: =G45 -> 92668.03496
A51: Pasivo circulante | C51: =SUM(C52:C53) -> 0 | D51: =SUM(D52:D53) -> 0 | E51: =SUM(E52:E53) -> 0 | F51: =SUM(F52:F53) -> 0 | G51: =SUM(G52:G53) -> 0
A52: Cuentas por pagar | C52: 0 | D52: 0 | E52: 0 | F52: 0 | G52: 0
A53: Proveedores | C53: 0 | D53: 0 | E53: 0 | F53: 0 | G53: 0
A54: Capital de Trabajo (Ac - Pc) | C54: =C49-C51 -> 89052.16016 | D54: =D49-D51 -> 89942.68176 | E54: =E49-E51 -> 90842.10858 | F54: =F49-F51 -> 91750.52966 | G54: =G49-G51 -> 92668.03496
A55: Incremento Capital Trabajo | B55: =C54-B54 -> 89052.16016 | C55: =D54-C54 -> 890.5216016 | D55: =E54-D54 -> 899.4268176 | E55: 908.4210858 | F55: 917.5052966 | G55: =H54-G54 -> -92668.03496
A57: 5. Inversiones
A58: Calendario de inversiones
A59: Concepto | B59: Año 0 | C59: Año 1 | D59: Año 2 | E59: Año 3 | F59: Año 4 | G59: Año 5
A60: Activos Fijos
A61: Inversiones 3 años | B61: =Inversiones!H11 -> 32828.63989 | E61: =FV(B10,3,,-B61) -> 33823.38051
A62: Inversiones 5 años | B62: =Inversiones!H9+Inversiones!H10 -> 52467.89366
A63: Inversiones 10 años | B63: =SUM(Inversiones!H16:H18) -> 108384.4581
A64: Gastos Pre-operativos
A65: Gastos puesta en marcha | B65: =B12 -> 0
A66: Capital de trabajo
A67: Capital de trabajo | B67: =B55 -> 89052.16016 | C67: 890.5216016 | D67: 899.4268176 | E67: 908.4210858 | F67: 917.5052966 | G67: -92668.03496
A68: Total Inversiones | B68: =SUM(B60:B67) -> 282733.1518 | C68: 890.5216016 | D68: 899.4268176 | E68: 34731.8016 | F68: 917.5052966 | G68: -92668.03496
A70: 6. Depreciaciones y Amortizaciones
A71: Calendario de Depreciaciones y Amortizaciones
A72: Concepto | B72: Año 0 | C72: Año 1 | D72: Año 2 | E72: Año 3 | F72: Año 4 | G72: Año 5
A73: Inversiones 3 años | C73: =$B$61/3 -> 10942.87996 | D73: =$B$61/3 -> 10942.87996 | E73: =$B$61/3 -> 10942.87996 | F73: =$E$61/3 -> 11274.46017 | G73: =$E$61/3 -> 11274.46017
A74: Inversiones 5 años | C74: =$B$62/5 -> 10493.57873 | D74: =$B$62/5 -> 10493.57873 | E74: =$B$62/5 -> 10493.57873 | F74: =$B$62/5 -> 10493.57873 | G74: =$B$62/5 -> 10493.57873
A75: Inversiones 10 años | C75: =$B$63/10 -> 10838.44581 | D75: =$B$63/10 -> 10838.44581 | E75: =$B$63/10 -> 10838.44581 | F75: =$B$63/10 -> 10838.44581 | G75: =$B$63/10 -> 10838.44581
A76: Total Depreciación/ Amortización | C76: =SUM(C73:C75) -> 32274.9045 | D76: =SUM(D73:D75) -> 32274.9045 | E76: =SUM(E73:E75) -> 32274.9045 | F76: =SUM(F73:F75) -> 32606.48471 | G76: =SUM(G73:G75) -> 32606.48471
A78: Amortización pre-operativos | C78: =$B$65/5 -> 0 | D78: =$B$65/5 -> 0 | E78: =$B$65/5 -> 0 | F78: =$B$65/5 -> 0 | G78: =$B$65/5 -> 0
A79: Total Amortización | C79: =SUM(C78) -> 0 | D79: =SUM(D78) -> 0 | E79: =SUM(E78) -> 0 | F79: =SUM(F78) -> 0 | G79: =SUM(G78) -> 0
A81: 7. Valor de desecho del proyecto
A82: Cálculo del valor de desecho del proyecto (método contable)
A83: Concepto | B83: Valor del | C83: Depreciación por periodo | H83: Valor de
B84: Activo | C84: Año 1 | D84: Año 2 | E84: Año 3 | F84: Año 4 | G84: Año 5 | H84: Desecho
A85: Inversiones 3 años | B85: =B61+E61 -> 66652.0204 | C85: =C73 -> 10942.87996 | D85: =D73 -> 10942.87996 | E85: 10942.87996 | F85: =F73 -> 11274.46017 | G85: 11274.46017 | H85: =B85-SUM(C85:G85) -> 11274.46017
A86: Inversiones 5 años | B86: =B62 -> 52467.89366 | C86: =C74 -> 10493.57873 | D86: =D74 -> 10493.57873 | E86: =E74 -> 10493.57873 | F86: =F74 -> 10493.57873 | G86: =G74 -> 10493.57873 | H86: =B86-SUM(C86:G86) -> 0
A87: Inversiones 10 años | B87: =B63 -> 108384.4581 | C87: 10838.44581 | D87: 10838.44581 | E87: 10838.44581 | F87: 10838.44581 | G87: 10838.44581 | H87: =B87-SUM(C87:G87) -> 54192.22904
A88: Amortización pre-operativos | B88: =B65 -> 0 | C88: =C78 -> 0 | D88: =D78 -> 0 | E88: =E78 -> 0 | F88: =F78 -> 0 | G88: =G78 -> 0 | H88: =B88-SUM(C88:G88) -> 0
A89: Valor de desecho total | H89: =SUM(H85:H88) -> 65466.68921
A91: 8. Financiamiento
A92: Cálculo del Financiamiento
A93: Financiamiento bancario (valor) | B93: =B16 -> 0
A94: Financiamiento bancario (tasa) | B94: =B17 -> 0
A95: Financiamiento bancario (periodos) | B95: =B18 -> 5 | C95: años
A96: Modalidad | B96: Pagos exactos
A98: Concepto | B98: Año 0 | C98: Año 1 | D98: Año 2 | E98: Año 3 | F98: Año 4 | G98: Año 5
A99: Saldo crédito | B99: =B93 -> 0 | C99: =B99-C102 -> 0 | D99: =C99-D102 -> 0 | E99: =D99-E102 -> 0 | F99: =E99-F102 -> 0 | G99: =F99-G102 -> 0
A100: Cuota anual (anualidad) | C100: =PMT($B$94,$B$95,-$B$93) -> 0 | D100: =PMT($B$94,$B$95,-$B$93) -> 0 | E100: =PMT($B$94,$B$95,-$B$93) -> 0 | F100: =PMT($B$94,$B$95,-$B$93) -> 0 | G100: =PMT($B$94,$B$95,-$B$93) -> 0
A101: Intereses | C101: =B99*$B$94 -> 0 | D101: =C99*$B$94 -> 0 | E101: =D99*$B$94 -> 0 | F101: =E99*$B$94 -> 0 | G101: =F99*$B$94 -> 0
A102: Abono a capital (amortización) | C102: =C100-C101 -> 0 | D102: =D100-D101 -> 0 | E102: =E100-E101 -> 0 | F102: =F100-F101 -> 0 | G102: =G100-G101 -> 0
A104: 9.Flujo de caja del proyecto
A105: Flujo de caja del proyecto
A106: Concepto | B106: Año 0 | C106: Año 1 | D106: Año 2 | E106: Año 3 | F106: Año 4 | G106: Año 5
A107: + Ingreso por ventas | C107: =C26 -> 375600 | D107: =D26 -> 379356 | E107: =E26 -> 383149.56 | F107: =F26 -> 386981.0556 | G107: =G26 -> 390850.8662
A108: - Egresos deducibles de impuestos | C108: =SUM(C109:C111) -> 267156.4805 | D108: =SUM(D109:D111) -> 269828.0453 | E108: =SUM(E109:E111) -> 272526.3257 | F108: =SUM(F109:F111) -> 275251.589 | G108: =SUM(G109:G111) -> 278004.1049
A109: Costos variables | C109: =C32 -> 257455.1149 | D109: =D32 -> 260029.666 | E109: =E32 -> 262629.9627 | F109: =F32 -> 265256.2623 | G109: =G32 -> 267908.8249
A110: Costos Fijos | C110: =C38 -> 9701.365604 | D110: =D38 -> 9798.37926 | E110: =E38 -> 9896.363053 | F110: =F38 -> 9995.326684 | G110: =G38 -> 10095.27995
A111: Gastos financieros | C111: =C101 -> 0 | D111: =D101 -> 0 | E111: =E101 -> 0 | F111: =F101 -> 0 | G111: =G101 -> 0
A112: - Gastos no desembolsables | C112: =SUM(C113:C114) -> 32274.9045 | D112: =SUM(D113:D114) -> 32274.9045 | E112: =SUM(E113:E114) -> 32274.9045 | F112: =SUM(F113:F114) -> 32606.48471 | G112: =SUM(G113:G114) -> 32606.48471
A113: Depreciación de activos | C113: =C76 -> 32274.9045 | D113: =D76 -> 32274.9045 | E113: =E76 -> 32274.9045 | F113: =F76 -> 32606.48471 | G113: =G76 -> 32606.48471
A114: Amortización de pre-operativos | C114: =C78 -> 0 | D114: =D78 -> 0 | E114: =E78 -> 0 | F114: =F78 -> 0 | G114: =G78 -> 0
A115: = Utilidad antes de impuestos | C115: =C107-C108-C112 -> 76168.61502 | D115: =D107-D108-D112 -> 77253.05021 | E115: =E107-E108-E112 -> 78348.32976 | F115: =F107-F108-F112 -> 79122.9819 | G115: =G107-G108-G112 -> 80240.27656
A116: - Impuestos (25%) | C116: =C115*$B$15 -> 19042.15375 | D116: =D115*$B$15 -> 19313.26255 | E116: =E115*$B$15 -> 19587.08244 | F116: =F115*$B$15 -> 19780.74547 | G116: =G115*$B$15 -> 20060.06914
A117: = Utilidad después de impuestos | C117: =C115-C116 -> 57126.46126 | D117: =D115-D116 -> 57939.78766 | E117: =E115-E116 -> 58761.24732 | F117: =F115-F116 -> 59342.23642 | G117: =G115-G116 -> 60180.20742
A118: + Gastos no desembolsables | C118: =SUM(C119:C120) -> 32274.9045 | D118: =SUM(D119:D120) -> 32274.9045 | E118: =SUM(E119:E120) -> 32274.9045 | F118: =SUM(F119:F120) -> 32606.48471 | G118: =SUM(G119:G120) -> 32606.48471
A119: Depreciación de activos | C119: =C113 -> 32274.9045 | D119: =D113 -> 32274.9045 | E119: =E113 -> 32274.9045 | F119: =F113 -> 32606.48471 | G119: =G113 -> 32606.48471
A120: Amortización de pre-operativos | C120: =C114 -> 0 | D120: 0 | E120: 0 | F120: 0 | G120: 0
A121: + Ingresos no sujetos a impuestos | B121: =SUM(B122:B124) -> 0 | C121: =SUM(C122:C124) -> 0 | D121: 0 | E121: 0 | F121: 0 | G121: 158134.7242
A122: Valor de desecho | G122: =H89 -> 65466.68921
A123: Recuperación del capital de trabajo | G123: =G45 -> 92668.03496
A124: Préstamo bancario | B124: =B93 -> 0
A125: - Egresos no deducibles de impuestos | B125: =SUM(B126:B131) -> 282733.1518 | C125: 890.5216016 | D125: 899.4268176 | E125: 908.4210858 | F125: 917.5052966 | G125: 0
A126: Activos (2 años) | B126: =B61 -> 32828.63989
A127: Activos (5 años) | B127: =B62 -> 52467.89366
A128: Activos (10 años) | B128: =B63 -> 108384.4581
A129: Gastos de puesta en marcha (pre-operativos) | B129: =B65 -> 0
A130: Inversión en capital de trabajo | B130: =B67 -> 89052.16016 | C130: =C67 -> 890.5216016 | D130: =D67 -> 899.4268176 | E130: =E67 -> 908.4210858 | F130: =F67 -> 917.5052966
A131: Pago préstamo bancario | C131: =C102 -> 0 | D131: =D102 -> 0 | E131: =E102 -> 0 | F131: =F102 -> 0 | G131: =G102 -> 0
A132: = Flujo de caja neto | B132: =B117+B118+B121-B125 -> -282733.1518 | C132: =C117+C118+C121-C125 -> 88510.84417 | D132: =D117+D118+D121-D125 -> 89315.26535 | E132: =E117+E118+E121-E125 -> 90127.73074 | F132: =F117+F118+F121-F125 -> 91031.21584 | G132: =G117+G118+G121-G125 -> 250921.4163
A133: Flujo de caja acumulado | B133: =B132 -> -282733.1518 | C133: =B133+C132 -> -194222.3076 | D133: =C133+D132 -> -104907.0423 | E133: =D133+E132 -> -14779.31154 | F133: =E133+F132 -> 76251.9043 | G133: =F133+G132 -> 327173.3206
A135: 10. Costo del capital
B136: Participación ($) | C136: Part. (%) | D136: Costo de capital | E136: Costo promedio
A137: Préstamo bancario | B137: =$B$68*C137 -> 0 | C137: ='Rendimientos & Supuestos '!E26 -> 0 | D137: =B17 -> 0 | E137: =C137*D137 -> 0
A138: Fondos propios | B138: =$B$68*C138 -> 282733.1518 | C138: ='Rendimientos & Supuestos '!E27 -> 1 | D138: =B14 -> 0.15 | E138: =C138*D138 -> 0.15
A139: Total | B139: =SUM(B137:B138) -> 282733.1518 | C139: =SUM(C137:C138) -> 1 | E139: =SUM(E137:E138) -> 0.15 | F139: Rendimiento mínimo aceptable (k)
F140: Tasa de corte (k)
A141: 11. Indicadores financieros | F141: Tasa promedio ponderada (k) para proyectos con financiamiento de préstamos bancarios y capital propio
A142: Valor Actual Neto (VAN) o Valor Presente Neto (VPN) = | B142: =NPV($E$139,C132:G132)+B132 -> 97828.10157 | C142: =_xlfn.FORMULATEXT(B142) -> =NPV($E$139;C132:G132)+B132 | E142: Para teclados en español la función es =VAN
A143: TIR = | B143: =IRR(B132:G132) -> 0.2658757095 | C143: =_xlfn.FORMULATEXT(B143) -> =IRR(B132:G132) | E143: Para teclados en español la función es =TIR
A144: PRI (años) = | B144: =3+(-E133/F132) -> 3.162354324 | C144: =3+(-E133/F132)
